Workbook

Sheet Exercise 2 data
A1: PRICE DATA: 10 STOCKS AND S&P 500, 2008-2012 S&P 500 represented by Vanguard's Index 500 fund (includes dividends)
B2: 1 | C2: 2 | D2: 3 | E2: 4 | F2: 5 | G2: 6 | H2: 7 | I2: 8 | J2: 9 | K2: 10 | L2: 11
B3: Apple | C3: Google | D3: Whole Foods | E3: Seagate | F3: Comcast | G3: Merck | H3: Johnson-Johnson | I3: General Electric | J3: Hewlett Packard | K3: Goldman Sachs | L3: S&P 500
A5: Date | B5: AAPL | C5: GOOG | D5: WFM | E5: STX | F5: CMCSA | G5: MRK | H5: JNJ | I5: GE | J5: HPQ | K5: GS | L5: VFINX
A6: 2008-01-07 | B6: 134.17 | C6: 564.3 | D6: 37.53 | E6: 17.89 | F6: 16.56 | G6: 36.76 | H6: 53.37 | I6: 29.01 | J6: 40.93 | K6: 188.57 | L6: 114.97
A7: 2008-02-01 | B7: 123.92 | C7: 471.18 | D7: 33.45 | E7: 19.04 | F7: 17.82 | G7: 35.32 | H7: 52.72 | I7: 27.43 | J7: 44.72 | K7: 160.3 | L7: 111.23
A8: 2008-03-03 | B8: 142.24 | C8: 440.47 | D8: 31.37 | E8: 18.48 | F8: 17.69 | G8: 30.53 | H8: 55.19 | I8: 30.64 | J8: 42.82 | K8: 156.29 | L8: 110.74
A9: 2008-04-01 | B9: 172.42 | C9: 574.29 | D9: 31.25 | E9: 16.76 | F9: 18.8 | G9: 30.6 | H9: 57.08 | I9: 27.07 | J9: 43.46 | K9: 181.18 | L9: 116.12
A10: 2008-05-01 | B10: 187.09 | C10: 585.8 | D10: 27.76 | E10: 19.02 | F10: 20.58 | G10: 31.34 | H10: 57.18 | I10: 25.43 | J10: 44.13 | K10: 167.02 | L10: 117.61
A11: 2008-06-02 | B11: 165.97 | C11: 526.42 | D11: 22.68 | E11: 16.99 | F11: 17.35 | G11: 30.62 | H11: 55.13 | I11: 22.34 | J11: 41.53 | K11: 165.59 | L11: 107.67
A12: 2008-07-01 | B12: 157.55 | C12: 473.75 | D12: 21.41 | E12: 13.4 | F12: 18.93 | G12: 26.73 | H12: 58.67 | I12: 23.68 | J12: 42.08 | K12: 174.58 | L12: 106.78
A13: 2008-08-01 | B13: 168.04 | C13: 463.29 | D13: 17.68 | E13: 13.35 | F13: 19.44 | G13: 28.98 | H13: 60.74 | I13: 23.52 | J13: 44.07 | K13: 155.54 | L13: 108.32
A14: 2008-09-02 | B14: 112.66 | C14: 400.52 | D14: 19.34 | E14: 10.85 | F14: 18.02 | G14: 25.92 | H14: 59.75 | I14: 21.63 | J14: 43.51 | K14: 121.42 | L14: 98.69
A15: 2008-10-01 | B15: 106.64 | C15: 359.36 | D15: 10.35 | E15: 6.06 | F15: 14.52 | G15: 25.42 | H15: 52.9 | I15: 16.55 | J15: 36.02 | K15: 88.01 | L15: 82.12
A16: 2008-11-03 | B16: 91.85 | C16: 292.96 | D16: 10.22 | E16: 3.83 | F16: 15.97 | G16: 21.95 | H16: 50.94 | I16: 14.56 | J16: 33.2 | K16: 75.16 | L16: 76.22
A17: 2008-12-01 | B17: 84.6 | C17: 307.65 | D17: 9.12 | E17: 4.03 | F17: 15.55 | G17: 25.33 | H17: 52.03 | I17: 14.01 | J17: 34.22 | K17: 80.3 | L17: 77.04
A18: 2009-01-02 | B18: 89.34 | C18: 338.53 | D18: 9.9 | E18: 3.45 | F18: 13.54 | G18: 23.79 | H18: 50.16 | I18: 10.49 | J18: 32.77 | K18: 76.81 | L18: 70.56
A19: 2009-02-02 | B19: 88.52 | C19: 337.99 | D19: 11.73 | E19: 3.94 | F19: 12.07 | G19: 20.16 | H19: 43.84 | I19: 7.57 | J19: 27.38 | K19: 87.13 | L19: 63.04
A20: 2009-03-02 | B20: 104.19 | C20: 348.06 | D20: 16.22 | E20: 5.51 | F20: 12.61 | G20: 22.66 | H20: 46.12 | I20: 9 | J20: 30.32 | K20: 101.43 | L20: 68.57
A21: 2009-04-01 | B21: 124.72 | C21: 395.97 | D21: 20.02 | E21: 7.48 | F21: 14.36 | G21: 20.54 | H21: 45.91 | I21: 11.26 | J21: 34.03 | K21: 122.93 | L21: 75.13
A22: 2009-05-01 | B22: 134.61 | C22: 417.23 | D22: 18.22 | E22: 7.99 | F22: 12.79 | G22: 23.37 | H22: 48.79 | I22: 12 | J22: 32.49 | K22: 138.66 | L22: 79.35
A23: 2009-06-01 | B23: 141.18 | C23: 421.59 | D23: 18.33 | E23: 9.59 | F23: 13.43 | G23: 24.02 | H23: 50.24 | I23: 10.52 | J23: 36.64 | K23: 141.42 | L23: 79.52
A24: 2009-07-01 | B24: 161.95 | C24: 443.05 | D24: 23.36 | E24: 11.04 | F24: 13.87 | G24: 25.78 | H24: 53.86 | I24: 12.02 | J24: 41.04 | K24: 156.63 | L24: 85.55
A25: 2009-08-03 | B25: 166.73 | C25: 461.67 | D25: 28.08 | E25: 12.7 | F25: 14.3 | G25: 27.86 | H25: 53.89 | I25: 12.47 | J25: 42.55 | K25: 159.04 | L25: 88.63
A26: 2009-09-01 | B26: 183.72 | C26: 495.85 | D26: 29.44 | E26: 13.94 | F26: 15.75 | G26: 27.5 | H26: 54.3 | I26: 14.82 | J26: 44.83 | K26: 177.2 | L26: 91.93
A27: 2009-10-01 | B27: 186.84 | C27: 536.12 | D27: 30.96 | E27: 12.79 | F27: 13.59 | G27: 26.89 | H27: 52.65 | I27: 12.87 | J27: 45.07 | K27: 163.57 | L27: 90.21
A28: 2009-11-02 | B28: 198.15 | C28: 583 | D28: 24.77 | E28: 13.87 | F28: 13.74 | G28: 31.48 | H28: 56.48 | I28: 14.46 | J28: 46.58 | K28: 163.43 | L28: 95.61
A29: 2009-12-01 | B29: 208.88 | C29: 619.98 | D29: 26.51 | E29: 16.68 | F29: 15.81 | G29: 32.09 | H29: 57.89 | I29: 13.74 | J29: 48.99 | K29: 162.64 | L29: 97.47
A30: 2010-01-04 | B30: 190.37 | C30: 529.94 | D30: 26.28 | E30: 15.32 | F30: 14.92 | G30: 33.53 | H30: 56.5 | I30: 14.61 | J30: 44.77 | K30: 143.26 | L30: 93.96
A31: 2010-02-01 | B31: 202.82 | C31: 526.8 | D31: 34.27 | E31: 18.25 | F31: 15.5 | G31: 32.39 | H31: 57.05 | I31: 14.68 | J31: 48.3 | K31: 150.94 | L31: 96.86
A32: 2010-03-01 | B32: 232.93 | C32: 567.12 | D32: 34.91 | E32: 16.74 | F32: 17.75 | G32: 33.15 | H32: 59.05 | I32: 16.64 | J32: 50.63 | K32: 164.73 | L32: 102.69
A33: 2010-04-01 | B33: 258.79 | C33: 525.7 | D33: 37.68 | E33: 16.82 | F33: 18.73 | G33: 31.1 | H33: 58.23 | I33: 17.24 | J33: 49.5 | K33: 140.18 | L33: 104.31
A34: 2010-05-03 | B34: 254.62 | C34: 485.63 | D34: 39.04 | E34: 14.08 | F34: 17.14 | G34: 29.9 | H34: 53.28 | I34: 14.95 | J34: 43.83 | K34: 139.62 | L34: 95.97
A35: 2010-06-01 | B35: 249.32 | C35: 444.95 | D35: 34.78 | E35: 11.96 | F35: 16.46 | G35: 31.38 | H35: 53.97 | I35: 13.26 | J35: 41.29 | K35: 127.05 | L35: 90.93
A36: 2010-07-01 | B36: 254.99 | C36: 484.85 | D36: 36.66 | E36: 11.51 | F36: 18.55 | G36: 30.92 | H36: 53.09 | I36: 14.83 | J36: 43.93 | K36: 145.97 | L36: 97.29
A37: 2010-08-02 | B37: 240.96 | C37: 450.02 | D37: 33.59 | E37: 9.3 | F37: 16.29 | G37: 31.55 | H37: 52.6 | I37: 13.32 | J37: 36.69 | K37: 132.86 | L37: 92.89
A38: 2010-09-01 | B38: 281.25 | C38: 525.79 | D38: 35.83 | E38: 10.8 | F38: 17.22 | G38: 33.38 | H38: 57.16 | I38: 15.06 | J38: 40.22 | K38: 140.28 | L38: 101.17
A39: 2010-10-01 | B39: 298.33 | C39: 613.7 | D39: 38.38 | E39: 13.49 | F39: 19.76 | G39: 32.92 | H39: 58.8 | I39: 14.85 | J39: 40.2 | K39: 156.34 | L39: 105
A40: 2010-11-01 | B40: 308.41 | C40: 555.71 | D40: 45.6 | E40: 12.29 | F40: 19.19 | G40: 31.26 | H40: 57.27 | I40: 14.67 | J40: 40.09 | K40: 151.83 | L40: 105
A41: 2010-12-01 | B41: 319.72 | C41: 593.97 | D41: 48.85 | E41: 13.78 | F41: 21.04 | G41: 33.03 | H41: 57.55 | I41: 17.08 | J41: 40.33 | K41: 163.52 | L41: 112
A42: 2011-01-03 | B42: 336.33 | C42: 600.36 | D42: 50.03 | E42: 12.84 | F42: 21.88 | G42: 30.4 | H42: 55.61 | I42: 18.81 | J42: 43.77 | K42: 159.11 | L42: 114.64
A43: 2011-02-01 | B43: 350.1 | C43: 613.4 | D43: 56.66 | E43: 11.64 | F43: 24.78 | G43: 29.85 | H43: 57.68 | I43: 19.67 | J43: 41.79 | K43: 159.6 | L43: 118.56
A44: 2011-03-01 | B44: 345.44 | C44: 586.76 | D44: 63.76 | E44: 13.21 | F44: 23.78 | G44: 30.61 | H44: 55.63 | I44: 18.86 | J44: 39.32 | K44: 154.55 | L44: 118.6
A45: 2011-04-01 | B45: 347.05 | C45: 544.1 | D45: 60.82 | E45: 16.32 | F45: 25.33 | G45: 33.33 | H45: 61.7 | I45: 19.23 | J45: 38.75 | K45: 147.16 | L45: 122.09
A46: 2011-05-02 | B46: 344.77 | C46: 529.02 | D46: 59.27 | E46: 15.56 | F46: 24.39 | G46: 34.07 | H46: 63.72 | I46: 18.47 | J46: 35.88 | K46: 137.49 | L46: 120.69
A47: 2011-06-01 | B47: 332.72 | C47: 506.38 | D47: 61.59 | E47: 14.97 | F47: 24.48 | G47: 33.07 | H47: 63 | I47: 17.88 | J47: 35.05 | K47: 130.03 | L47: 118.67
A48: 2011-07-01 | B48: 387.04 | C48: 603.69 | D48: 64.75 | E48: 12.86 | F48: 23.31 | G48: 31.99 | H48: 61.36 | I48: 16.98 | J48: 33.87 | K48: 131.86 | L48: 116.24
A49: 2011-08-01 | B49: 381.44 | C49: 540.96 | D49: 64.1 | E49: 10.87 | F49: 20.88 | G49: 31.02 | H49: 62.87 | I49: 15.47 | J49: 25.07 | K49: 113.89 | L49: 109.91
A50: 2011-09-01 | B50: 377.96 | C50: 515.04 | D50: 63.49 | E50: 9.65 | F50: 20.3 | G50: 31.01 | H50: 60.85 | I50: 14.57 | J50: 21.74 | K50: 92.65 | L50: 102.16
A51: 2011-10-03 | B51: 401.22 | C51: 592.64 | D51: 70.11 | E51: 15.16 | F51: 22.88 | G51: 32.72 | H51: 61.52 | I51: 16 | J51: 25.76 | K51: 107.35 | L51: 113.3
A52: 2011-11-01 | B52: 378.84 | C52: 599.39 | D52: 66.2 | E52: 16.24 | F52: 22.12 | G52: 33.91 | H52: 62.41 | I52: 15.23 | J52: 27.06 | K52: 94.3 | L52: 113.04
A53: 2011-12-01 | B53: 401.44 | C53: 645.9 | D53: 67.64 | E53: 15.57 | F53: 23.25 | G53: 36.19 | H53: 63.24 | I53: 17.31 | J53: 25.05 | K53: 88.96 | L53: 114.2
A54: 2012-01-03 | B54: 452.46 | C54: 580.11 | D54: 72.11 | E54: 20.07 | F54: 26.06 | G54: 36.73 | H54: 63.56 | I54: 18.08 | J54: 27.21 | K54: 109.66 | L54: 119.29
A55: 2012-02-01 | B55: 537.67 | C55: 618.25 | D55: 78.64 | E55: 25.17 | F55: 28.84 | G55: 36.64 | H55: 63.31 | I55: 18.58 | J55: 24.61 | K55: 113.61 | L55: 124.43
A56: 2012-03-01 | B56: 594.27 | C56: 641.24 | D56: 81.04 | E56: 25.84 | F56: 29.42 | G56: 37.27 | H56: 64.17 | I56: 19.57 | J56: 23.29 | K56: 122.72 | L56: 128.52
A57: 2012-04-02 | B57: 578.84 | C57: 604.85 | D57: 81.05 | E57: 29.74 | F57: 29.92 | G57: 38.08 | H57: 63.33 | I57: 19.09 | J57: 24.2 | K57: 113.62 | L57: 127.69
A58: 2012-05-01 | B58: 572.64 | C58: 580.86 | D58: 86.45 | E58: 22.65 | F58: 28.5 | G58: 36.47 | H58: 61.33 | I58: 18.62 | J58: 22.16 | K58: 94.88 | L58: 120.01
A59: 2012-06-01 | B59: 578.86 | C59: 580.07 | D59: 93.13 | E59: 23.91 | F59: 31.68 | G59: 40.96 | H59: 66.36 | I59: 20.5 | J59: 19.77 | K59: 95.04 | L59: 124.95
A60: 2012-07-02 | B60: 605.38 | C60: 632.97 | D60: 89.68 | E60: 29.02 | F60: 32.26 | G60: 43.34 | H60: 68 | I60: 20.41 | J60: 17.93 | K60: 100.03 | L60: 126.66
A61: 2012-08-01 | B61: 662.22 | C61: 685.09 | D61: 94.53 | E61: 31.25 | F61: 33.23 | G61: 42.24 | H61: 66.84 | I61: 20.37 | J61: 16.59 | K61: 105.27 | L61: 129.49
A62: 2012-09-04 | B62: 664.07 | C62: 754.5 | D62: 95.3 | E62: 30.22 | F62: 35.42 | G62: 44.67 | H62: 68.31 | I62: 22.5 | J62: 16.9 | K62: 113.2 | L62: 132.83
A63: 2012-10-01 | B63: 592.61 | C63: 680.3 | D63: 92.75 | E63: 26.68 | F63: 37.36 | G63: 45.2 | H63: 70.2 | I63: 20.87 | J63: 13.72 | K63: 121.87 | L63: 130.36
A64: 2012-11-01 | B64: 585.28 | C64: 698.37 | D64: 91.35 | E64: 24.77 | F64: 37.04 | G64: 43.88 | H64: 69.73 | I64: 20.94 | J64: 12.87 | K64: 117.79 | L64: 131.09
A65: 2012-12-03 | B65: 532.17 | C65: 707.38 | D65: 91.16 | E65: 30.42 | F65: 37.36 | G65: 40.94 | H65: 70.1 | I65: 20.99 | J65: 14.25 | K65: 127.56 | L65: 131.37
A66: 2013-01-02 | B66: 527 | C66: 737.97 | D66: 91.22 | E66: 31.45 | F66: 38.07 | G66: 41.97 | H66: 71.55 | I66: 21.2 | J66: 15.14 | K66: 134.51 | L66: 135.11

Sheet Exercise 2 template
A1: RETURN DATA: 10 STOCKS AND SP500
B2: 1 | C2: 2 | D2: 3 | E2: 4 | F2: 5 | G2: 6 | H2: 7 | I2: 8 | J2: 9 | K2: 10 | L2: 11
B3: Apple | C3: Google | D3: Whole Foods | E3: Seagate | F3: Comcast | G3: Merck | H3: Johnson-Johnson | I3: General Electric | J3: Hewlett Packard | K3: Goldman Sachs | L3: S&P 500
A4: Monthly statistics
A5: Mean | B5: =AVERAGE(B24:B83) -> 0.02280154827 | C5: =AVERAGE(C24:C83) -> 0.004471952473 | D5: 0.01480222597 | E5: 0.009402618094 | F5: 0.01387394036 | G5: 0.002209079664 | H5: 0.004885795261 | I5: -0.005227323608 | J5: -0.01657538404 | K5: -0.005630512417 | L5: 0.002690300612 | M5: =getformula(L5) -> <-- =AVERAGE(L24:L83)
A6: Variance | B6: =_xlfn.VAR.S(B24:B83) -> 0.009493934607 | C6: =_xlfn.VAR.S(C24:C83) -> 0.008945348321 | D6: 0.01830295895 | E6: 0.03376314077 | F6: 0.007234803778 | G6: 0.004923652375 | H6: 0.001882525475 | I6: 0.01245223134 | J6: 0.008576292399 | K6: 0.01237130385 | L6: 0.003066011099 | M6: =getformula(L6) -> <-- =VAR.S(L24:L83)
A7: Sigma | B7: =SQRT(B6) -> 0.09743682367 | C7: =SQRT(C6) -> 0.09457985156 | D7: 0.1352884288 | E7: 0.1837474919 | F7: 0.08505764973 | G7: 0.07016874215 | H7: 0.04338807988 | I7: 0.1115895664 | J7: 0.09260827392 | K7: 0.1112263631 | L7: 0.05537157302 | M7: =getformula(L7) -> <-- =SQRT(L6)
A9: Annual statistics
A10: Mean | B10: =B5*12 -> 0.2736185792 | C10: =C5*12 -> 0.05366342968 | D10: 0.1776267116 | E10: 0.1128314171 | F10: 0.1664872843 | G10: 0.02650895597 | H10: 0.05862954313 | I10: -0.06272788329 | J10: -0.1989046085 | K10: -0.067566149 | L10: 0.03228360734 | M10: =getformula(L10) -> <-- =L5*12
A11: Variance | B11: =B6*12 -> 0.1139272153 | C11: =C6*12 -> 0.1073441799 | D11: 0.2196355074 | E11: 0.4051576893 | F11: 0.08681764534 | G11: 0.0590838285 | H11: 0.02259030571 | I11: 0.149426776 | J11: 0.1029155088 | K11: 0.1484556462 | L11: 0.03679213319 | M11: =getformula(L11) -> <-- =L6*12
A12: Sigma | B12: =SQRT(B11) -> 0.3375310582 | C12: =SQRT(C11) -> 0.3276342166 | D12: 0.4686528645 | E12: 0.6365199834 | F12: 0.2946483418 | G12: 0.243071653 | H12: 0.1503007176 | I12: 0.3865575973 | J12: 0.3208044713 | K12: 0.3852994241 | L12: 0.1918127555 | M12: <-- =SQRT(L11)
B13: =B7*SQRT(12) -> 0.3375310582 | C13: =C7*SQRT(12) -> 0.3276342166 | D13: 0.4686528645 | E13: 0.6365199834 | F13: 0.2946483418 | G13: 0.243071653 | H13: 0.1503007176 | I13: 0.3865575973 | J13: 0.3208044713 | K13: 0.3852994241 | L13: 0.1918127555 | M13: <-- =L7*SQRT(12)
A14: Regressing individual assets on the S&P 500
A15: Alpha | B15: =INTERCEPT(B24:B83,$L$24:$L$83) -> 0.01987670978 | C15: =INTERCEPT(C24:C83,$L$24:$L$83) -> 0.001745684573 | D15: 0.01173961261 | E15: 0.00296485704 | F15: 0.01088236283 | G15: 0.0006403475663 | H15: 0.003440984369 | I15: -0.009640291769 | J15: -0.01944962197 | K15: -0.009400213515 | L15: =INTERCEPT(L24:L83,$L$24:$L$83) -> 0 | M15: =getformula(L15) -> <-- =INTERCEPT(L24:L83,$L$24:$L$83)
A16: Beta | B16: =SLOPE(B24:B83,$L$24:$L$83) -> 1.087179059 | C16: =SLOPE(C24:C83,$L$24:$L$83) -> 1.013369245 | D16: 1.13839076 | E16: 2.392952306 | F16: 1.11198634 | G16: 0.5831066205 | H16: 0.5370444052 | I16: 1.640325301 | J16: 1.068370544 | K16: 1.401219284 | L16: 1 | M16: =getformula(L16) -> <-- =SLOPE(L24:L83,$L$24:$L$83)
A17: Rsq | B17: =RSQ(B24:B83,$L$24:$L$83) -> 0.3817065776 | C17: =RSQ(C24:C83,$L$24:$L$83) -> 0.3519750715 | D17: 0.2170876618 | E17: 0.5199947618 | F17: 0.5240175962 | G17: 0.211729945 | H17: 0.4697353602 | I17: 0.6625009566 | J17: 0.408054296 | K17: 0.4865981577 | L17: =RSQ(L24:L83,$L$24:$L$83) -> 1 | M17: <-- =RSQ(L24:L83,$L$24:$L$83)
A18: T-test, intercept | B18: =tintercept(B24:B83,$L$24:$L$83) -> 1.990063864 | C18: =tintercept(C24:C83,$L$24:$L$83) -> 0.1758791014 | D18: 0.7522799603 | E18: 0.1786497026 | F18: 1.422516533 | G18: 0.07884560789 | H18: 0.835427724 | I18: -1.140704785 | J18: -2.093935919 | K18: -0.9047825549 | L18: -0.3081631536 | M18: <-- =tintercept(L24:L83,$L$24:$L$83)
A19: T-test, slope | B19: =tslope(B24:B83,$L$24:$L$83) -> 5.983861122 | C19: =tslope(C24:C83,$L$24:$L$83) -> 5.612729254 | D19: 4.010282792 | E19: 7.92666479 | F19: 7.990822487 | G19: 3.947004529 | H19: 7.16793882 | I19: 10.67016115 | J19: 6.323128934 | K19: 7.414306162 | M19: =getformula(K19) -> <-- =tslope(K24:K83,$L$24:$L$83)
A22: RETURN DATA
A23: Date | B23: AAPL | C23: GOOG | D23: WFM | E23: STX | F23: CMCSA | G23: MRK | H23: JNJ | I23: GE | J23: HPQ | K23: GS | L23: SP500
A24: 2008-02-01 | B24: =LN('Exercise 2 data'!B7/'Exercise 2 data'!B6) -> -0.07947145649 | C24: =LN('Exercise 2 data'!C7/'Exercise 2 data'!C6) -> -0.1803458384 | D24: =LN('Exercise 2 data'!D7/'Exercise 2 data'!D6) -> -0.1150888266 | E24: =LN('Exercise 2 data'!E7/'Exercise 2 data'!E6) -> 0.06230013184 | F24: =LN('Exercise 2 data'!F7/'Exercise 2 data'!F6) -> 0.07333127309 | G24: =LN('Exercise 2 data'!G7/'Exercise 2 data'!G6) -> -0.03996092175 | H24: =LN('Exercise 2 data'!H7/'Exercise 2 data'!H6) -> -0.01225390015 | I24: =LN('Exercise 2 data'!I7/'Exercise 2 data'!I6) -> -0.05600329318 | J24: =LN('Exercise 2 data'!J7/'Exercise 2 data'!J6) -> 0.08855753834 | K24: =LN('Exercise 2 data'!K7/'Exercise 2 data'!K6) -> -0.1624222311 | L24: =LN('Exercise 2 data'!L7/'Exercise 2 data'!L6) -> -0.03307109516 | M24: =getformula(L24) -> <-- =LN('Exercise 2 data'!L7/'Exercise 2 data'!L6)
A25: 2008-03-03 | B25: =LN('Exercise 2 data'!B8/'Exercise 2 data'!B7) -> 0.1378795757 | C25: =LN('Exercise 2 data'!C8/'Exercise 2 data'!C7) -> -0.06739784798 | D25: =LN('Exercise 2 data'!D8/'Exercise 2 data'!D7) -> -0.06419976437 | E25: =LN('Exercise 2 data'!E8/'Exercise 2 data'!E7) -> -0.02985296315 | F25: =LN('Exercise 2 data'!F8/'Exercise 2 data'!F7) -> -0.007321913871 | G25: =LN('Exercise 2 data'!G8/'Exercise 2 data'!G7) -> -0.145739569 | H25: =LN('Exercise 2 data'!H8/'Exercise 2 data'!H7) -> 0.04578688726 | I25: =LN('Exercise 2 data'!I8/'Exercise 2 data'!I7) -> 0.1106690399 | J25: =LN('Exercise 2 data'!J8/'Exercise 2 data'!J7) -> -0.04341554569 | K25: =LN('Exercise 2 data'!K8/'Exercise 2 data'!K7) -> -0.02533380376 | L25: =LN('Exercise 2 data'!L8/'Exercise 2 data'!L7) -> -0.004415018209
A26: 2008-04-01 | B26: =LN('Exercise 2 data'!B9/'Exercise 2 data'!B8) -> 0.192417589 | C26: =LN('Exercise 2 data'!C9/'Exercise 2 data'!C8) -> 0.2652921566 | D26: =LN('Exercise 2 data'!D9/'Exercise 2 data'!D8) -> -0.00383264602 | E26: =LN('Exercise 2 data'!E9/'Exercise 2 data'!E8) -> -0.09769397116 | F26: =LN('Exercise 2 data'!F9/'Exercise 2 data'!F8) -> 0.06085736166 | G26: =LN('Exercise 2 data'!G9/'Exercise 2 data'!G8) -> 0.002290202212 | H26: =LN('Exercise 2 data'!H9/'Exercise 2 data'!H8) -> 0.03367201516 | I26: =LN('Exercise 2 data'!I9/'Exercise 2 data'!I8) -> -0.1238802412 | J26: =LN('Exercise 2 data'!J9/'Exercise 2 data'!J8) -> 0.01483569167 | K26: =LN('Exercise 2 data'!K9/'Exercise 2 data'!K8) -> 0.1477777564 | L26: =LN('Exercise 2 data'!L9/'Exercise 2 data'!L8) -> 0.04743902776
A27: 2008-05-01 | B27: =LN('Exercise 2 data'!B10/'Exercise 2 data'!B9) -> 0.08165642372 | C27: =LN('Exercise 2 data'!C10/'Exercise 2 data'!C9) -> 0.01984393918 | D27: =LN('Exercise 2 data'!D10/'Exercise 2 data'!D9) -> -0.1184232405 | E27: =LN('Exercise 2 data'!E10/'Exercise 2 data'!E9) -> 0.1264959621 | F27: =LN('Exercise 2 data'!F10/'Exercise 2 data'!F9) -> 0.09046286057 | G27: =LN('Exercise 2 data'!G10/'Exercise 2 data'!G9) -> 0.02389522797 | H27: =LN('Exercise 2 data'!H10/'Exercise 2 data'!H9) -> 0.001750394286 | I27: =LN('Exercise 2 data'!I10/'Exercise 2 data'!I9) -> -0.06249652419 | J27: =LN('Exercise 2 data'!J10/'Exercise 2 data'!J9) -> 0.01529884845 | K27: =LN('Exercise 2 data'!K10/'Exercise 2 data'!K9) -> -0.08137744652 | L27: =LN('Exercise 2 data'!L10/'Exercise 2 data'!L9) -> 0.01274992671
A28: 2008-06-02 | B28: =LN('Exercise 2 data'!B11/'Exercise 2 data'!B10) -> -0.1197827354 | C28: =LN('Exercise 2 data'!C11/'Exercise 2 data'!C10) -> -0.1068790612 | D28: =LN('Exercise 2 data'!D11/'Exercise 2 data'!D10) -> -0.2021126568 | E28: =LN('Exercise 2 data'!E11/'Exercise 2 data'!E10) -> -0.1128661214 | F28: =LN('Exercise 2 data'!F11/'Exercise 2 data'!F10) -> -0.170727224 | G28: =LN('Exercise 2 data'!G11/'Exercise 2 data'!G10) -> -0.0232418467 | H28: =LN('Exercise 2 data'!H11/'Exercise 2 data'!H10) -> -0.03651015429 | I28: =LN('Exercise 2 data'!I11/'Exercise 2 data'!I10) -> -0.1295507858 | J28: =LN('Exercise 2 data'!J11/'Exercise 2 data'!J10) -> -0.06072376564 | K28: =LN('Exercise 2 data'!K11/'Exercise 2 data'!K10) -> -0.008598712071 | L28: =LN('Exercise 2 data'!L11/'Exercise 2 data'!L10) -> -0.08830307204
A29: 2008-07-01 | B29: =LN('Exercise 2 data'!B12/'Exercise 2 data'!B11) -> -0.05206418093 | C29: =LN('Exercise 2 data'!C12/'Exercise 2 data'!C11) -> -0.1054196168 | D29: =LN('Exercise 2 data'!D12/'Exercise 2 data'!D11) -> -0.05762537626 | E29: =LN('Exercise 2 data'!E12/'Exercise 2 data'!E11) -> -0.2373702287 | F29: =LN('Exercise 2 data'!F12/'Exercise 2 data'!F11) -> 0.08715545883 | G29: =LN('Exercise 2 data'!G12/'Exercise 2 data'!G11) -> -0.1358668601 | H29: =LN('Exercise 2 data'!H12/'Exercise 2 data'!H11) -> 0.06223449034 | I29: =LN('Exercise 2 data'!I12/'Exercise 2 data'!I11) -> 0.05825201637 | J29: =LN('Exercise 2 data'!J12/'Exercise 2 data'!J11) -> 0.01315651079 | K29: =LN('Exercise 2 data'!K12/'Exercise 2 data'!K11) -> 0.05286823565 | L29: =LN('Exercise 2 data'!L12/'Exercise 2 data'!L11) -> -0.008300350756
A30: 2008-08-01 | B30: =LN('Exercise 2 data'!B13/'Exercise 2 data'!B12) -> 0.0644591781 | C30: =LN('Exercise 2 data'!C13/'Exercise 2 data'!C12) -> -0.02232654849 | D30: =LN('Exercise 2 data'!D13/'Exercise 2 data'!D12) -> -0.1914240454 | E30: =LN('Exercise 2 data'!E13/'Exercise 2 data'!E12) -> -0.003738322111 | F30: =LN('Exercise 2 data'!F13/'Exercise 2 data'!F12) -> 0.02658483381 | G30: =LN('Exercise 2 data'!G13/'Exercise 2 data'!G12) -> 0.08081940674 | H30: =LN('Exercise 2 data'!H13/'Exercise 2 data'!H12) -> 0.03467393668 | I30: =LN('Exercise 2 data'!I13/'Exercise 2 data'!I12) -> -0.006779686985 | J30: =LN('Exercise 2 data'!J13/'Exercise 2 data'!J12) -> 0.04620671042 | K30: =LN('Exercise 2 data'!K13/'Exercise 2 data'!K12) -> -0.115480156 | L30: =LN('Exercise 2 data'!L13/'Exercise 2 data'!L12) -> 0.01431916609
A31: 2008-09-02 | B31: =LN('Exercise 2 data'!B14/'Exercise 2 data'!B13) -> -0.3998276128 | C31: =LN('Exercise 2 data'!C14/'Exercise 2 data'!C13) -> -0.1455895051 | D31: =LN('Exercise 2 data'!D14/'Exercise 2 data'!D13) -> 0.08974143282 | E31: =LN('Exercise 2 data'!E14/'Exercise 2 data'!E13) -> -0.2073513049 | F31: =LN('Exercise 2 data'!F14/'Exercise 2 data'!F13) -> -0.07585054685 | G31: =LN('Exercise 2 data'!G14/'Exercise 2 data'!G13) -> -0.1115910654 | H31: =LN('Exercise 2 data'!H14/'Exercise 2 data'!H13) -> -0.01643326881 | I31: =LN('Exercise 2 data'!I14/'Exercise 2 data'!I13) -> -0.08376988307 | J31: =LN('Exercise 2 data'!J14/'Exercise 2 data'!J13) -> -0.01278848212 | K31: =LN('Exercise 2 data'!K14/'Exercise 2 data'!K13) -> -0.2476473236 | L31: =LN('Exercise 2 data'!L14/'Exercise 2 data'!L13) -> -0.09310618498
A32: 2008-10-01 | B32: =LN('Exercise 2 data'!B15/'Exercise 2 data'!B14) -> -0.0549157576 | C32: =LN('Exercise 2 data'!C15/'Exercise 2 data'!C14) -> -0.1084390313 | D32: =LN('Exercise 2 data'!D15/'Exercise 2 data'!D14) -> -0.6251889703 | E32: =LN('Exercise 2 data'!E15/'Exercise 2 data'!E14) -> -0.5824552799 | F32: =LN('Exercise 2 data'!F15/'Exercise 2 data'!F14) -> -0.2159552428 | G32: =LN('Exercise 2 data'!G15/'Exercise 2 data'!G14) -> -0.01947860572 | H32: =LN('Exercise 2 data'!H15/'Exercise 2 data'!H14) -> -0.1217658519 | I32: =LN('Exercise 2 data'!I15/'Exercise 2 data'!I14) -> -0.2676951381 | J32: =LN('Exercise 2 data'!J15/'Exercise 2 data'!J14) -> -0.188916457 | K32: =LN('Exercise 2 data'!K15/'Exercise 2 data'!K14) -> -0.3218051653 | L32: =LN('Exercise 2 data'!L15/'Exercise 2 data'!L14) -> -0.183802032
A33: 2008-11-03 | B33: =LN('Exercise 2 data'!B16/'Exercise 2 data'!B15) -> -0.1493018642 | C33: =LN('Exercise 2 data'!C16/'Exercise 2 data'!C15) -> -0.2042885906 | D33: =LN('Exercise 2 data'!D16/'Exercise 2 data'!D15) -> -0.01263993494 | E33: =LN('Exercise 2 data'!E16/'Exercise 2 data'!E15) -> -0.4588449969 | F33: =LN('Exercise 2 data'!F16/'Exercise 2 data'!F15) -> 0.09518495283 | G33: =LN('Exercise 2 data'!G16/'Exercise 2 data'!G15) -> -0.1467691262 | H33: =LN('Exercise 2 data'!H16/'Exercise 2 data'!H15) -> -0.03775486931 | I33: =LN('Exercise 2 data'!I16/'Exercise 2 data'!I15) -> -0.1281080591 | J33: =LN('Exercise 2 data'!J16/'Exercise 2 data'!J15) -> -0.08152446383 | K33: =LN('Exercise 2 data'!K16/'Exercise 2 data'!K15) -> -0.1578312698 | L33: =LN('Exercise 2 data'!L16/'Exercise 2 data'!L15) -> -0.07455769671
A34: 2008-12-01 | B34: =LN('Exercise 2 data'!B17/'Exercise 2 data'!B16) -> -0.08222254505 | C34: =LN('Exercise 2 data'!C17/'Exercise 2 data'!C16) -> 0.04892669226 | D34: =LN('Exercise 2 data'!D17/'Exercise 2 data'!D16) -> -0.1138767807 | E34: =LN('Exercise 2 data'!E17/'Exercise 2 data'!E16) -> 0.05090157277 | F34: =LN('Exercise 2 data'!F17/'Exercise 2 data'!F16) -> -0.0266513236 | G34: =LN('Exercise 2 data'!G17/'Exercise 2 data'!G16) -> 0.1432223245 | H34: =LN('Exercise 2 data'!H17/'Exercise 2 data'!H16) -> 0.02117200575 | I34: =LN('Exercise 2 data'!I17/'Exercise 2 data'!I16) -> -0.03850668242 | J34: =LN('Exercise 2 data'!J17/'Exercise 2 data'!J16) -> 0.03026039254 | K34: =LN('Exercise 2 data'!K17/'Exercise 2 data'!K16) -> 0.06615044641 | L34: =LN('Exercise 2 data'!L17/'Exercise 2 data'!L16) -> 0.01070087204
A35: 2009-01-02 | B35: =LN('Exercise 2 data'!B18/'Exercise 2 data'!B17) -> 0.05451504931 | C35: =LN('Exercise 2 data'!C18/'Exercise 2 data'!C17) -> 0.09564994153 | D35: =LN('Exercise 2 data'!D18/'Exercise 2 data'!D17) -> 0.08206495305 | E35: =LN('Exercise 2 data'!E18/'Exercise 2 data'!E17) -> -0.1553921449 | F35: =LN('Exercise 2 data'!F18/'Exercise 2 data'!F17) -> -0.1384123711 | G35: =LN('Exercise 2 data'!G18/'Exercise 2 data'!G17) -> -0.0627241397 | H35: =LN('Exercise 2 data'!H18/'Exercise 2 data'!H17) -> -0.03660257898 | I35: =LN('Exercise 2 data'!I18/'Exercise 2 data'!I17) -> -0.2893489379 | J35: =LN('Exercise 2 data'!J18/'Exercise 2 data'!J17) -> -0.04329680575 | K35: =LN('Exercise 2 data'!K18/'Exercise 2 data'!K17) -> -0.04443478094 | L35: =LN('Exercise 2 data'!L18/'Exercise 2 data'!L17) -> -0.08786135579
A36: 2009-02-02 | B36: =LN('Exercise 2 data'!B19/'Exercise 2 data'!B18) -> -0.009220800741 | C36: =LN('Exercise 2 data'!C19/'Exercise 2 data'!C18) -> -0.001596405471 | D36: =LN('Exercise 2 data'!D19/'Exercise 2 data'!D18) -> 0.1696149055 | E36: =LN('Exercise 2 data'!E19/'Exercise 2 data'!E18) -> 0.1328064923 | F36: =LN('Exercise 2 data'!F19/'Exercise 2 data'!F18) -> -0.1149252324 | G36: =LN('Exercise 2 data'!G19/'Exercise 2 data'!G18) -> -0.1655648811 | H36: =LN('Exercise 2 data'!H19/'Exercise 2 data'!H18) -> -0.1346712537 | I36: =LN('Exercise 2 data'!I19/'Exercise 2 data'!I18) -> -0.326229355 | J36: =LN('Exercise 2 data'!J19/'Exercise 2 data'!J18) -> -0.1797006429 | K36: =LN('Exercise 2 data'!K19/'Exercise 2 data'!K18) -> 0.1260664162 | L36: =LN('Exercise 2 data'!L19/'Exercise 2 data'!L18) -> -0.1126939661
A37: 2009-03-02 | B37: =LN('Exercise 2 data'!B20/'Exercise 2 data'!B19) -> 0.1629876402 | C37: =LN('Exercise 2 data'!C20/'Exercise 2 data'!C19) -> 0.02935856946 | D37: =LN('Exercise 2 data'!D20/'Exercise 2 data'!D19) -> 0.324095386 | E37: =LN('Exercise 2 data'!E20/'Exercise 2 data'!E19) -> 0.3353838999 | F37: =LN('Exercise 2 data'!F20/'Exercise 2 data'!F19) -> 0.04376711487 | G37: =LN('Exercise 2 data'!G20/'Exercise 2 data'!G19) -> 0.1169008124 | H37: =LN('Exercise 2 data'!H20/'Exercise 2 data'!H19) -> 0.05070005276 | I37: =LN('Exercise 2 data'!I20/'Exercise 2 data'!I19) -> 0.1730315099 | J37: =LN('Exercise 2 data'!J20/'Exercise 2 data'!J19) -> 0.1019947409 | K37: =LN('Exercise 2 data'!K20/'Exercise 2 data'!K19) -> 0.1519676491 | L37: =LN('Exercise 2 data'!L20/'Exercise 2 data'!L19) -> 0.08408567575
A38: 2009-04-01 | B38: =LN('Exercise 2 data'!B21/'Exercise 2 data'!B20) -> 0.1798550693 | C38: =LN('Exercise 2 data'!C21/'Exercise 2 data'!C20) -> 0.1289635721 | D38: =LN('Exercise 2 data'!D21/'Exercise 2 data'!D20) -> 0.2104867252 | E38: =LN('Exercise 2 data'!E21/'Exercise 2 data'!E20) -> 0.3056681688 | F38: =LN('Exercise 2 data'!F21/'Exercise 2 data'!F20) -> 0.1299564136 | G38: =LN('Exercise 2 data'!G21/'Exercise 2 data'!G20) -> -0.0982270511 | H38: =LN('Exercise 2 data'!H21/'Exercise 2 data'!H20) -> -0.00456373714 | I38: =LN('Exercise 2 data'!I21/'Exercise 2 data'!I20) -> 0.2240320454 | J38: =LN('Exercise 2 data'!J21/'Exercise 2 data'!J20) -> 0.1154349277 | K38: =LN('Exercise 2 data'!K21/'Exercise 2 data'!K20) -> 0.1922461823 | L38: =LN('Exercise 2 data'!L21/'Exercise 2 data'!L20) -> 0.09136482508
A39: 2009-05-01 | B39: =LN('Exercise 2 data'!B22/'Exercise 2 data'!B21) -> 0.07631048391 | C39: =LN('Exercise 2 data'!C22/'Exercise 2 data'!C21) -> 0.05229917769 | D39: =LN('Exercise 2 data'!D22/'Exercise 2 data'!D21) -> -0.09421188206 | E39: =LN('Exercise 2 data'!E22/'Exercise 2 data'!E21) -> 0.06595796779 | F39: =LN('Exercise 2 data'!F22/'Exercise 2 data'!F21) -> -0.115782948 | G39: =LN('Exercise 2 data'!G22/'Exercise 2 data'!G21) -> 0.1290789441 | H39: =LN('Exercise 2 data'!H22/'Exercise 2 data'!H21) -> 0.06084241557 | I39: =LN('Exercise 2 data'!I22/'Exercise 2 data'!I21) -> 0.06365002708 | J39: =LN('Exercise 2 data'!J22/'Exercise 2 data'!J21) -> -0.04631013883 | K39: =LN('Exercise 2 data'!K22/'Exercise 2 data'!K21) -> 0.1204098058 | L39: =LN('Exercise 2 data'!L22/'Exercise 2 data'!L21) -> 0.05464850059
A40: 2009-06-01 | B40: =LN('Exercise 2 data'!B23/'Exercise 2 data'!B22) -> 0.04765396331 | C40: =LN('Exercise 2 data'!C23/'Exercise 2 data'!C22) -> 0.01039564928 | D40: =LN('Exercise 2 data'!D23/'Exercise 2 data'!D22) -> 0.00601917002 | E40: =LN('Exercise 2 data'!E23/'Exercise 2 data'!E22) -> 0.1825301291 | F40: =LN('Exercise 2 data'!F23/'Exercise 2 data'!F22) -> 0.04882739494 | G40: =LN('Exercise 2 data'!G23/'Exercise 2 data'!G22) -> 0.0274336681 | H40: =LN('Exercise 2 data'!H23/'Exercise 2 data'!H22) -> 0.02928614833 | I40: =LN('Exercise 2 data'!I23/'Exercise 2 data'!I22) -> -0.1316284425 | J40: =LN('Exercise 2 data'!J23/'Exercise 2 data'!J22) -> 0.1202081901 | K40: =LN('Exercise 2 data'!K23/'Exercise 2 data'!K22) -> 0.01970929266 | L40: =LN('Exercise 2 data'!L23/'Exercise 2 data'!L22) -> 0.002140115376
A41: 2009-07-01 | B41: =LN('Exercise 2 data'!B24/'Exercise 2 data'!B23) -> 0.1372519737 | C41: =LN('Exercise 2 data'!C24/'Exercise 2 data'!C23) -> 0.04964935271 | D41: =LN('Exercise 2 data'!D24/'Exercise 2 data'!D23) -> 0.2424860961 | E41: =LN('Exercise 2 data'!E24/'Exercise 2 data'!E23) -> 0.140804152 | F41: =LN('Exercise 2 data'!F24/'Exercise 2 data'!F23) -> 0.03223722379 | G41: =LN('Exercise 2 data'!G24/'Exercise 2 data'!G23) -> 0.07071218086 | H41: =LN('Exercise 2 data'!H24/'Exercise 2 data'!H23) -> 0.06957656522 | I41: =LN('Exercise 2 data'!I24/'Exercise 2 data'!I23) -> 0.1332937218 | J41: =LN('Exercise 2 data'!J24/'Exercise 2 data'!J23) -> 0.1134066611 | K41: =LN('Exercise 2 data'!K24/'Exercise 2 data'!K23) -> 0.1021521499 | L41: =LN('Exercise 2 data'!L24/'Exercise 2 data'!L23) -> 0.07309243799
A42: 2009-08-03 | B42: =LN('Exercise 2 data'!B25/'Exercise 2 data'!B24) -> 0.02908809196 | C42: =LN('Exercise 2 data'!C25/'Exercise 2 data'!C24) -> 0.04116771965 | D42: =LN('Exercise 2 data'!D25/'Exercise 2 data'!D24) -> 0.1840324212 | E42: =LN('Exercise 2 data'!E25/'Exercise 2 data'!E24) -> 0.1400769526 | F42: =LN('Exercise 2 data'!F25/'Exercise 2 data'!F24) -> 0.03053130294 | G42: =LN('Exercise 2 data'!G25/'Exercise 2 data'!G24) -> 0.07759297084 | H42: =LN('Exercise 2 data'!H25/'Exercise 2 data'!H24) -> 0.000556844562 | I42: =LN('Exercise 2 data'!I25/'Exercise 2 data'!I24) -> 0.03675383058 | J42: =LN('Exercise 2 data'!J25/'Exercise 2 data'!J24) -> 0.03613265416 | K42: =LN('Exercise 2 data'!K25/'Exercise 2 data'!K24) -> 0.01526940682 | L42: =LN('Exercise 2 data'!L25/'Exercise 2 data'!L24) -> 0.03536940041
A43: 2009-09-01 | B43: =LN('Exercise 2 data'!B26/'Exercise 2 data'!B25) -> 0.09703712189 | C43: =LN('Exercise 2 data'!C26/'Exercise 2 data'!C25) -> 0.07142311149 | D43: =LN('Exercise 2 data'!D26/'Exercise 2 data'!D25) -> 0.0472967147 | E43: =LN('Exercise 2 data'!E26/'Exercise 2 data'!E25) -> 0.09316041187 | F43: =LN('Exercise 2 data'!F26/'Exercise 2 data'!F25) -> 0.09658082801 | G43: =LN('Exercise 2 data'!G26/'Exercise 2 data'!G25) -> -0.01300596368 | H43: =LN('Exercise 2 data'!H26/'Exercise 2 data'!H25) -> 0.007579294994 | I43: =LN('Exercise 2 data'!I26/'Exercise 2 data'!I25) -> 0.1726518602 | J43: =LN('Exercise 2 data'!J26/'Exercise 2 data'!J25) -> 0.05219770315 | K43: =LN('Exercise 2 data'!K26/'Exercise 2 data'!K25) -> 0.1081232953 | L43: =LN('Exercise 2 data'!L26/'Exercise 2 data'!L25) -> 0.03655701713
A44: 2009-10-01 | B44: =LN('Exercise 2 data'!B27/'Exercise 2 data'!B26) -> 0.01683977618 | C44: =LN('Exercise 2 data'!C27/'Exercise 2 data'!C26) -> 0.07808455498 | D44: =LN('Exercise 2 data'!D27/'Exercise 2 data'!D26) -> 0.05034175486 | E44: =LN('Exercise 2 data'!E27/'Exercise 2 data'!E26) -> -0.08609878974 | F44: =LN('Exercise 2 data'!F27/'Exercise 2 data'!F26) -> -0.1475061371 | G44: =LN('Exercise 2 data'!G27/'Exercise 2 data'!G26) -> -0.02243153439 | H44: =LN('Exercise 2 data'!H27/'Exercise 2 data'!H26) -> -0.03085798836 | I44: =LN('Exercise 2 data'!I27/'Exercise 2 data'!I26) -> -0.1410785983 | J44: =LN('Exercise 2 data'!J27/'Exercise 2 data'!J26) -> 0.005339278535 | K44: =LN('Exercise 2 data'!K27/'Exercise 2 data'!K26) -> -0.0800380049 | L44: =LN('Exercise 2 data'!L27/'Exercise 2 data'!L26) -> -0.01888713221
A45: 2009-11-02 | B45: =LN('Exercise 2 data'!B28/'Exercise 2 data'!B27) -> 0.058771684 | C45: =LN('Exercise 2 data'!C28/'Exercise 2 data'!C27) -> 0.08382916974 | D45: =LN('Exercise 2 data'!D28/'Exercise 2 data'!D27) -> -0.2230628052 | E45: =LN('Exercise 2 data'!E28/'Exercise 2 data'!E27) -> 0.08106461874 | F45: =LN('Exercise 2 data'!F28/'Exercise 2 data'!F27) -> 0.01097705863 | G45: =LN('Exercise 2 data'!G28/'Exercise 2 data'!G27) -> 0.1575979533 | H45: =LN('Exercise 2 data'!H28/'Exercise 2 data'!H27) -> 0.07022035461 | I45: =LN('Exercise 2 data'!I28/'Exercise 2 data'!I27) -> 0.1164871951 | J45: =LN('Exercise 2 data'!J28/'Exercise 2 data'!J27) -> 0.03295442775 | K45: =LN('Exercise 2 data'!K28/'Exercise 2 data'!K27) -> -0.0008562691655 | L45: =LN('Exercise 2 data'!L28/'Exercise 2 data'!L27) -> 0.05813713143
A46: 2009-12-01 | B46: =LN('Exercise 2 data'!B29/'Exercise 2 data'!B28) -> 0.05273560475 | C46: =LN('Exercise 2 data'!C29/'Exercise 2 data'!C28) -> 0.0615000331 | D46: =LN('Exercise 2 data'!D29/'Exercise 2 data'!D28) -> 0.0678887768 | E46: =LN('Exercise 2 data'!E29/'Exercise 2 data'!E28) -> 0.1844821626 | F46: =LN('Exercise 2 data'!F29/'Exercise 2 data'!F28) -> 0.1403313644 | G46: =LN('Exercise 2 data'!G29/'Exercise 2 data'!G28) -> 0.01919203157 | H46: =LN('Exercise 2 data'!H29/'Exercise 2 data'!H28) -> 0.02465806491 | I46: =LN('Exercise 2 data'!I29/'Exercise 2 data'!I28) -> -0.05107492994 | J46: =LN('Exercise 2 data'!J29/'Exercise 2 data'!J28) -> 0.05044493119 | K46: =LN('Exercise 2 data'!K29/'Exercise 2 data'!K28) -> -0.004845594785 | L46: =LN('Exercise 2 data'!L29/'Exercise 2 data'!L28) -> 0.01926722125
A47: 2010-01-04 | B47: =LN('Exercise 2 data'!B30/'Exercise 2 data'!B29) -> -0.09279037747 | C47: =LN('Exercise 2 data'!C30/'Exercise 2 data'!C29) -> -0.1569234269 | D47: =LN('Exercise 2 data'!D30/'Exercise 2 data'!D29) -> -0.008713826685 | E47: =LN('Exercise 2 data'!E30/'Exercise 2 data'!E29) -> -0.08505123262 | F47: =LN('Exercise 2 data'!F30/'Exercise 2 data'!F29) -> -0.05794005645 | G47: =LN('Exercise 2 data'!G30/'Exercise 2 data'!G29) -> 0.04389610536 | H47: =LN('Exercise 2 data'!H30/'Exercise 2 data'!H29) -> -0.02430401994 | I47: =LN('Exercise 2 data'!I30/'Exercise 2 data'!I29) -> 0.06139493897 | J47: =LN('Exercise 2 data'!J30/'Exercise 2 data'!J29) -> -0.0900779234 | K47: =LN('Exercise 2 data'!K30/'Exercise 2 data'!K29) -> -0.1268780081 | L47: =LN('Exercise 2 data'!L30/'Exercise 2 data'!L29) -> -0.03667547856
A48: 2010-02-01 | B48: =LN('Exercise 2 data'!B31/'Exercise 2 data'!B30) -> 0.06334933927 | C48: =LN('Exercise 2 data'!C31/'Exercise 2 data'!C30) -> -0.005942822721 | D48: =LN('Exercise 2 data'!D31/'Exercise 2 data'!D30) -> 0.2654621423 | E48: =LN('Exercise 2 data'!E31/'Exercise 2 data'!E30) -> 0.1750059157 | F48: =LN('Exercise 2 data'!F31/'Exercise 2 data'!F30) -> 0.03813742915 | G48: =LN('Exercise 2 data'!G31/'Exercise 2 data'!G30) -> -0.03459082729 | H48: =LN('Exercise 2 data'!H31/'Exercise 2 data'!H30) -> 0.009687438156 | I48: =LN('Exercise 2 data'!I31/'Exercise 2 data'!I30) -> 0.004779797424 | J48: =LN('Exercise 2 data'!J31/'Exercise 2 data'!J30) -> 0.07589328841 | K48: =LN('Exercise 2 data'!K31/'Exercise 2 data'!K30) -> 0.05222124567 | L48: =LN('Exercise 2 data'!L31/'Exercise 2 data'!L30) -> 0.03039747718
A49: 2010-03-01 | B49: =LN('Exercise 2 data'!B32/'Exercise 2 data'!B31) -> 0.1384190931 | C49: =LN('Exercise 2 data'!C32/'Exercise 2 data'!C31) -> 0.07374995168 | D49: =LN('Exercise 2 data'!D32/'Exercise 2 data'!D31) -> 0.01850298523 | E49: =LN('Exercise 2 data'!E32/'Exercise 2 data'!E31) -> -0.08636401497 | F49: =LN('Exercise 2 data'!F32/'Exercise 2 data'!F31) -> 0.135545492 | G49: =LN('Exercise 2 data'!G32/'Exercise 2 data'!G31) -> 0.02319298345 | H49: =LN('Exercise 2 data'!H32/'Exercise 2 data'!H31) -> 0.03445646634 | I49: =LN('Exercise 2 data'!I32/'Exercise 2 data'!I31) -> 0.1253234122 | J49: =LN('Exercise 2 data'!J32/'Exercise 2 data'!J31) -> 0.04711272532 | K49: =LN('Exercise 2 data'!K32/'Exercise 2 data'!K31) -> 0.0874253631 | L49: =LN('Exercise 2 data'!L32/'Exercise 2 data'!L31) -> 0.05844810424
A50: 2010-04-01 | B50: =LN('Exercise 2 data'!B33/'Exercise 2 data'!B32) -> 0.1052789428 | C50: =LN('Exercise 2 data'!C33/'Exercise 2 data'!C32) -> -0.07584021372 | D50: =LN('Exercise 2 data'!D33/'Exercise 2 data'!D32) -> 0.07635612859 | E50: =LN('Exercise 2 data'!E33/'Exercise 2 data'!E32) -> 0.004767589483 | F50: =LN('Exercise 2 data'!F33/'Exercise 2 data'!F32) -> 0.05374100053 | G50: =LN('Exercise 2 data'!G33/'Exercise 2 data'!G32) -> -0.06383489745 | H50: =LN('Exercise 2 data'!H33/'Exercise 2 data'!H32) -> -0.01398385679 | I50: =LN('Exercise 2 data'!I33/'Exercise 2 data'!I32) -> 0.03542282984 | J50: =LN('Exercise 2 data'!J33/'Exercise 2 data'!J32) -> -0.02257161641 | K50: =LN('Exercise 2 data'!K33/'Exercise 2 data'!K32) -> -0.1613804589 | L50: =LN('Exercise 2 data'!L33/'Exercise 2 data'!L32) -> 0.01565249348
A51: 2010-05-03 | B51: =LN('Exercise 2 data'!B34/'Exercise 2 data'!B33) -> -0.01624468437 | C51: =LN('Exercise 2 data'!C34/'Exercise 2 data'!C33) -> -0.07928369075 | D51: =LN('Exercise 2 data'!D34/'Exercise 2 data'!D33) -> 0.03545731184 | E51: =LN('Exercise 2 data'!E34/'Exercise 2 data'!E33) -> -0.1778133038 | F51: =LN('Exercise 2 data'!F34/'Exercise 2 data'!F33) -> -0.08871160329 | G51: =LN('Exercise 2 data'!G34/'Exercise 2 data'!G33) -> -0.03934933879 | H51: =LN('Exercise 2 data'!H34/'Exercise 2 data'!H33) -> -0.08883965962 | I51: =LN('Exercise 2 data'!I34/'Exercise 2 data'!I33) -> -0.1425209654 | J51: =LN('Exercise 2 data'!J34/'Exercise 2 data'!J33) -> -0.1216541551 | K51: =LN('Exercise 2 data'!K34/'Exercise 2 data'!K33) -> -0.00400286453 | L51: =LN('Exercise 2 data'!L34/'Exercise 2 data'!L33) -> -0.08333159206
A52: 2010-06-01 | B52: =LN('Exercise 2 data'!B35/'Exercise 2 data'!B34) -> -0.02103502569 | C52: =LN('Exercise 2 data'!C35/'Exercise 2 data'!C34) -> -0.08748510078 | D52: =LN('Exercise 2 data'!D35/'Exercise 2 data'!D34) -> -0.1155442526 | E52: =LN('Exercise 2 data'!E35/'Exercise 2 data'!E34) -> -0.1631876022 | F52: =LN('Exercise 2 data'!F35/'Exercise 2 data'!F34) -> -0.04048171792 | G52: =LN('Exercise 2 data'!G35/'Exercise 2 data'!G34) -> 0.04831226691 | H52: =LN('Exercise 2 data'!H35/'Exercise 2 data'!H34) -> 0.0128673104 | I52: =LN('Exercise 2 data'!I35/'Exercise 2 data'!I34) -> -0.1199593151 | J52: =LN('Exercise 2 data'!J35/'Exercise 2 data'!J34) -> -0.05969817453 | K52: =LN('Exercise 2 data'!K35/'Exercise 2 data'!K34) -> -0.09434373678 | L52: =LN('Exercise 2 data'!L35/'Exercise 2 data'!L34) -> -0.05394566289
A53: 2010-07-01 | B53: =LN('Exercise 2 data'!B36/'Exercise 2 data'!B35) -> 0.02248711676 | C53: =LN('Exercise 2 data'!C36/'Exercise 2 data'!C35) -> 0.08587764845 | D53: =LN('Exercise 2 data'!D36/'Exercise 2 data'!D35) -> 0.05264373349 | E53: =LN('Exercise 2 data'!E36/'Exercise 2 data'!E35) -> -0.03835152579 | F53: =LN('Exercise 2 data'!F36/'Exercise 2 data'!F35) -> 0.1195365938 | G53: =LN('Exercise 2 data'!G36/'Exercise 2 data'!G35) -> -0.01476752359 | H53: =LN('Exercise 2 data'!H36/'Exercise 2 data'!H35) -> -0.01643975003 | I53: =LN('Exercise 2 data'!I36/'Exercise 2 data'!I35) -> 0.1119001714 | J53: =LN('Exercise 2 data'!J36/'Exercise 2 data'!J35) -> 0.06197711809 | K53: =LN('Exercise 2 data'!K36/'Exercise 2 data'!K35) -> 0.1388204114 | L53: =LN('Exercise 2 data'!L36/'Exercise 2 data'!L35) -> 0.06760622925
A54: 2010-08-02 | B54: =LN('Exercise 2 data'!B37/'Exercise 2 data'!B36) -> -0.05659338409 | C54: =LN('Exercise 2 data'!C37/'Exercise 2 data'!C36) -> -0.07454753853 | D54: =LN('Exercise 2 data'!D37/'Exercise 2 data'!D36) -> -0.08745783879 | E54: =LN('Exercise 2 data'!E37/'Exercise 2 data'!E36) -> -0.2132018226 | F54: =LN('Exercise 2 data'!F37/'Exercise 2 data'!F36) -> -0.1299183664 | G54: =LN('Exercise 2 data'!G37/'Exercise 2 data'!G36) -> 0.02017036527 | H54: =LN('Exercise 2 data'!H37/'Exercise 2 data'!H36) -> -0.009272466852 | I54: =LN('Exercise 2 data'!I37/'Exercise 2 data'!I36) -> -0.107385491 | J54: =LN('Exercise 2 data'!J37/'Exercise 2 data'!J36) -> -0.1800932196 | K54: =LN('Exercise 2 data'!K37/'Exercise 2 data'!K36) -> -0.09410517891 | L54: =LN('Exercise 2 data'!L37/'Exercise 2 data'!L36) -> -0.04628021159
A55: 2010-09-01 | B55: =LN('Exercise 2 data'!B38/'Exercise 2 data'!B37) -> 0.1546130089 | C55: =LN('Exercise 2 data'!C38/'Exercise 2 data'!C37) -> 0.1556098673 | D55: =LN('Exercise 2 data'!D38/'Exercise 2 data'!D37) -> 0.06455712769 | E55: =LN('Exercise 2 data'!E38/'Exercise 2 data'!E37) -> 0.149531734 | F55: =LN('Exercise 2 data'!F38/'Exercise 2 data'!F37) -> 0.05552007639 | G55: =LN('Exercise 2 data'!G38/'Exercise 2 data'!G37) -> 0.05638332925 | H55: =LN('Exercise 2 data'!H38/'Exercise 2 data'!H37) -> 0.08313823332 | I55: =LN('Exercise 2 data'!I38/'Exercise 2 data'!I37) -> 0.1227755573 | J55: =LN('Exercise 2 data'!J38/'Exercise 2 data'!J37) -> 0.09186014598 | K55: =LN('Exercise 2 data'!K38/'Exercise 2 data'!K37) -> 0.05434448303 | L55: =LN('Exercise 2 data'!L38/'Exercise 2 data'!L37) -> 0.08538627282
A56: 2010-10-01 | B56: =LN('Exercise 2 data'!B39/'Exercise 2 data'!B38) -> 0.05895630284 | C56: =LN('Exercise 2 data'!C39/'Exercise 2 data'!C38) -> 0.1546043159 | D56: =LN('Exercise 2 data'!D39/'Exercise 2 data'!D38) -> 0.06875095926 | E56: =LN('Exercise 2 data'!E39/'Exercise 2 data'!E38) -> 0.2224025361 | F56: =LN('Exercise 2 data'!F39/'Exercise 2 data'!F38) -> 0.1375881933 | G56: =LN('Exercise 2 data'!G39/'Exercise 2 data'!G38) -> -0.01387654242 | H56: =LN('Exercise 2 data'!H39/'Exercise 2 data'!H38) -> 0.02828750184 | I56: =LN('Exercise 2 data'!I39/'Exercise 2 data'!I38) -> -0.01404235712 | J56: =LN('Exercise 2 data'!J39/'Exercise 2 data'!J38) -> -0.0004973887195 | K56: =LN('Exercise 2 data'!K39/'Exercise 2 data'!K38) -> 0.1083926975 | L56: =LN('Exercise 2 data'!L39/'Exercise 2 data'!L38) -> 0.03715807994
A57: 2010-11-01 | B57: =LN('Exercise 2 data'!B40/'Exercise 2 data'!B39) -> 0.03322981023 | C57: =LN('Exercise 2 data'!C40/'Exercise 2 data'!C39) -> -0.09925963395 | D57: =LN('Exercise 2 data'!D40/'Exercise 2 data'!D39) -> 0.1723712259 | E57: =LN('Exercise 2 data'!E40/'Exercise 2 data'!E39) -> -0.09316274664 | F57: =LN('Exercise 2 data'!F40/'Exercise 2 data'!F39) -> -0.0292703823 | G57: =LN('Exercise 2 data'!G40/'Exercise 2 data'!G39) -> -0.05174105082 | H57: =LN('Exercise 2 data'!H40/'Exercise 2 data'!H39) -> -0.0263649285 | I57: =LN('Exercise 2 data'!I40/'Exercise 2 data'!I39) -> -0.01219527309 | J57: =LN('Exercise 2 data'!J40/'Exercise 2 data'!J39) -> -0.002740068971 | K57: =LN('Exercise 2 data'!K40/'Exercise 2 data'!K39) -> -0.0292716489 | L57: =LN('Exercise 2 data'!L40/'Exercise 2 data'!L39) -> 0
A58: 2010-12-01 | B58: =LN('Exercise 2 data'!B41/'Exercise 2 data'!B40) -> 0.03601554617 | C58: =LN('Exercise 2 data'!C41/'Exercise 2 data'!C40) -> 0.06658223759 | D58: =LN('Exercise 2 data'!D41/'Exercise 2 data'!D40) -> 0.06884666197 | E58: =LN('Exercise 2 data'!E41/'Exercise 2 data'!E40) -> 0.114432342 | F58: =LN('Exercise 2 data'!F41/'Exercise 2 data'!F40) -> 0.09203607785 | G58: =LN('Exercise 2 data'!G41/'Exercise 2 data'!G40) -> 0.05507691441 | H58: =LN('Exercise 2 data'!H41/'Exercise 2 data'!H40) -> 0.004877208762 | I58: =LN('Exercise 2 data'!I41/'Exercise 2 data'!I40) -> 0.1521035962 | J58: =LN('Exercise 2 data'!J41/'Exercise 2 data'!J40) -> 0.005968682231 | K58: =LN('Exercise 2 data'!K41/'Exercise 2 data'!K40) -> 0.07417383312 | L58: =LN('Exercise 2 data'!L41/'Exercise 2 data'!L40) -> 0.06453852114
A59: 2011-01-03 | B59: =LN('Exercise 2 data'!B42/'Exercise 2 data'!B41) -> 0.05064720808 | C59: =LN('Exercise 2 data'!C42/'Exercise 2 data'!C41) -> 0.01070066225 | D59: =LN('Exercise 2 data'!D42/'Exercise 2 data'!D41) -> 0.02386844701 | E59: =LN('Exercise 2 data'!E42/'Exercise 2 data'!E41) -> -0.07065296732 | F59: =LN('Exercise 2 data'!F42/'Exercise 2 data'!F41) -> 0.03914758968 | G59: =LN('Exercise 2 data'!G42/'Exercise 2 data'!G41) -> -0.08297363099 | H59: =LN('Exercise 2 data'!H42/'Exercise 2 data'!H41) -> -0.03429109397 | I59: =LN('Exercise 2 data'!I42/'Exercise 2 data'!I41) -> 0.09648045495 | J59: =LN('Exercise 2 data'!J42/'Exercise 2 data'!J41) -> 0.08185304232 | K59: =LN('Exercise 2 data'!K42/'Exercise 2 data'!K41) -> -0.0273395201 | L59: =LN('Exercise 2 data'!L42/'Exercise 2 data'!L41) -> 0.02329791222
A60: 2011-02-01 | B60: =LN('Exercise 2 data'!B43/'Exercise 2 data'!B42) -> 0.04012600713 | C60: =LN('Exercise 2 data'!C43/'Exercise 2 data'!C42) -> 0.02148777639 | D60: =LN('Exercise 2 data'!D43/'Exercise 2 data'!D42) -> 0.1244456689 | E60: =LN('Exercise 2 data'!E43/'Exercise 2 data'!E42) -> -0.09811785596 | F60: =LN('Exercise 2 data'!F43/'Exercise 2 data'!F42) -> 0.1244638986 | G60: =LN('Exercise 2 data'!G43/'Exercise 2 data'!G42) -> -0.01825776857 | H60: =LN('Exercise 2 data'!H43/'Exercise 2 data'!H42) -> 0.03654745178 | I60: =LN('Exercise 2 data'!I43/'Exercise 2 data'!I42) -> 0.04470598909 | J60: =LN('Exercise 2 data'!J43/'Exercise 2 data'!J42) -> -0.04629157474 | K60: =LN('Exercise 2 data'!K43/'Exercise 2 data'!K42) -> 0.003074898096 | L60: =LN('Exercise 2 data'!L43/'Exercise 2 data'!L42) -> 0.03362237803
A61: 2011-03-01 | B61: =LN('Exercise 2 data'!B44/'Exercise 2 data'!B43) -> -0.01339986119 | C61: =LN('Exercise 2 data'!C44/'Exercise 2 data'!C43) -> -0.04440137406 | D61: =LN('Exercise 2 data'!D44/'Exercise 2 data'!D43) -> 0.1180575401 | E61: =LN('Exercise 2 data'!E44/'Exercise 2 data'!E43) -> 0.1265266762 | F61: =LN('Exercise 2 data'!F44/'Exercise 2 data'!F43) -> -0.04119198494 | G61: =LN('Exercise 2 data'!G44/'Exercise 2 data'!G43) -> 0.02514191312 | H61: =LN('Exercise 2 data'!H44/'Exercise 2 data'!H43) -> -0.03618786889 | I61: =LN('Exercise 2 data'!I44/'Exercise 2 data'!I43) -> -0.0420513552 | J61: =LN('Exercise 2 data'!J44/'Exercise 2 data'!J43) -> -0.06092378118 | K61: =LN('Exercise 2 data'!K44/'Exercise 2 data'!K43) -> -0.03215301644 | L61: =LN('Exercise 2 data'!L44/'Exercise 2 data'!L43) -> 0.0003373250158
A62: 2011-04-01 | B62: =LN('Exercise 2 data'!B45/'Exercise 2 data'!B44) -> 0.004649895019 | C62: =LN('Exercise 2 data'!C45/'Exercise 2 data'!C44) -> -0.07548282413 | D62: =LN('Exercise 2 data'!D45/'Exercise 2 data'!D44) -> -0.04720735223 | E62: =LN('Exercise 2 data'!E45/'Exercise 2 data'!E44) -> 0.211417231 | F62: =LN('Exercise 2 data'!F45/'Exercise 2 data'!F44) -> 0.06314457275 | G62: =LN('Exercise 2 data'!G45/'Exercise 2 data'!G44) -> 0.08513113936 | H62: =LN('Exercise 2 data'!H45/'Exercise 2 data'!H44) -> 0.1035613068 | I62: =LN('Exercise 2 data'!I45/'Exercise 2 data'!I44) -> 0.0194282824 | J62: =LN('Exercise 2 data'!J45/'Exercise 2 data'!J44) -> -0.01460253948 | K62: =LN('Exercise 2 data'!K45/'Exercise 2 data'!K44) -> -0.04899723834 | L62: =LN('Exercise 2 data'!L45/'Exercise 2 data'!L44) -> 0.02900199112
A63: 2011-05-02 | B63: =LN('Exercise 2 data'!B46/'Exercise 2 data'!B45) -> -0.006591333742 | C63: =LN('Exercise 2 data'!C46/'Exercise 2 data'!C45) -> -0.02810681516 | D63: =LN('Exercise 2 data'!D46/'Exercise 2 data'!D45) -> -0.02581540645 | E63: =LN('Exercise 2 data'!E46/'Exercise 2 data'!E45) -> -0.04768783079 | F63: =LN('Exercise 2 data'!F46/'Exercise 2 data'!F45) -> -0.03781625179 | G63: =LN('Exercise 2 data'!G46/'Exercise 2 data'!G45) -> 0.02195933935 | H63: =LN('Exercise 2 data'!H46/'Exercise 2 data'!H45) -> 0.03221455413 | I63: =LN('Exercise 2 data'!I46/'Exercise 2 data'!I45) -> -0.04032376539 | J63: =LN('Exercise 2 data'!J46/'Exercise 2 data'!J45) -> -0.07695071861 | K63: =LN('Exercise 2 data'!K46/'Exercise 2 data'!K45) -> -0.06796924305 | L63: =LN('Exercise 2 data'!L46/'Exercise 2 data'!L45) -> -0.01153320305
A64: 2011-06-01 | B64: =LN('Exercise 2 data'!B47/'Exercise 2 data'!B46) -> -0.03557623261 | C64: =LN('Exercise 2 data'!C47/'Exercise 2 data'!C46) -> -0.04373886275 | D64: =LN('Exercise 2 data'!D47/'Exercise 2 data'!D46) -> 0.0383962439 | E64: =LN('Exercise 2 data'!E47/'Exercise 2 data'!E46) -> -0.03865532032 | F64: =LN('Exercise 2 data'!F47/'Exercise 2 data'!F46) -> 0.003683245416 | G64: =LN('Exercise 2 data'!G47/'Exercise 2 data'!G46) -> -0.02979070468 | H64: =LN('Exercise 2 data'!H47/'Exercise 2 data'!H46) -> -0.01136375865 | I64: =LN('Exercise 2 data'!I47/'Exercise 2 data'!I46) -> -0.03246502447 | J64: =LN('Exercise 2 data'!J47/'Exercise 2 data'!J46) -> -0.02340442371 | K64: =LN('Exercise 2 data'!K47/'Exercise 2 data'!K46) -> -0.05578599413 | L64: =LN('Exercise 2 data'!L47/'Exercise 2 data'!L46) -> -0.01687874295
A65: 2011-07-01 | B65: =LN('Exercise 2 data'!B48/'Exercise 2 data'!B47) -> 0.1512267514 | C65: =LN('Exercise 2 data'!C48/'Exercise 2 data'!C47) -> 0.1757734456 | D65: =LN('Exercise 2 data'!D48/'Exercise 2 data'!D47) -> 0.05003418088 | E65: =LN('Exercise 2 data'!E48/'Exercise 2 data'!E47) -> -0.1519264796 | F65: =LN('Exercise 2 data'!F48/'Exercise 2 data'!F47) -> -0.0489740046 | G65: =LN('Exercise 2 data'!G48/'Exercise 2 data'!G47) -> -0.03320317303 | H65: =LN('Exercise 2 data'!H48/'Exercise 2 data'!H47) -> -0.02637656933 | I65: =LN('Exercise 2 data'!I48/'Exercise 2 data'!I47) -> -0.05164658886 | J65: =LN('Exercise 2 data'!J48/'Exercise 2 data'!J47) -> -0.03424594665 | K65: =LN('Exercise 2 data'!K48/'Exercise 2 data'!K47) -> 0.01397556062 | L65: =LN('Exercise 2 data'!L48/'Exercise 2 data'!L47) -> -0.02068951242
A66: 2011-08-01 | B66: =LN('Exercise 2 data'!B49/'Exercise 2 data'!B48) -> -0.01457448242 | C66: =LN('Exercise 2 data'!C49/'Exercise 2 data'!C48) -> -0.1097154822 | D66: =LN('Exercise 2 data'!D49/'Exercise 2 data'!D48) -> -0.01008933665 | E66: =LN('Exercise 2 data'!E49/'Exercise 2 data'!E48) -> -0.1681150177 | F66: =LN('Exercise 2 data'!F49/'Exercise 2 data'!F48) -> -0.11009069 | G66: =LN('Exercise 2 data'!G49/'Exercise 2 data'!G48) -> -0.03079119621 | H66: =LN('Exercise 2 data'!H49/'Exercise 2 data'!H48) -> 0.02431094534 | I66: =LN('Exercise 2 data'!I49/'Exercise 2 data'!I48) -> -0.0931335163 | J66: =LN('Exercise 2 data'!J49/'Exercise 2 data'!J48) -> -0.3008577547 | K66: =LN('Exercise 2 data'!K49/'Exercise 2 data'!K48) -> -0.1465076834 | L66: =LN('Exercise 2 data'!L49/'Exercise 2 data'!L48) -> -0.05599517018
A67: 2011-09-01 | B67: =LN('Exercise 2 data'!B50/'Exercise 2 data'!B49) -> -0.009165194523 | C67: =LN('Exercise 2 data'!C50/'Exercise 2 data'!C49) -> -0.04910077141 | D67: =LN('Exercise 2 data'!D50/'Exercise 2 data'!D49) -> -0.009561950744 | E67: =LN('Exercise 2 data'!E50/'Exercise 2 data'!E49) -> -0.1190487858 | F67: =LN('Exercise 2 data'!F50/'Exercise 2 data'!F49) -> -0.02817087697 | G67: =LN('Exercise 2 data'!G50/'Exercise 2 data'!G49) -> -0.000322424636 | H67: =LN('Exercise 2 data'!H50/'Exercise 2 data'!H49) -> -0.03265728296 | I67: =LN('Exercise 2 data'!I50/'Exercise 2 data'!I49) -> -0.05993804438 | J67: =LN('Exercise 2 data'!J50/'Exercise 2 data'!J49) -> -0.1425180305 | K67: =LN('Exercise 2 data'!K50/'Exercise 2 data'!K49) -> -0.2064041176 | L67: =LN('Exercise 2 data'!L50/'Exercise 2 data'!L49) -> -0.07312163736
A68: 2011-10-03 | B68: =LN('Exercise 2 data'!B51/'Exercise 2 data'!B50) -> 0.05972153538 | C68: =LN('Exercise 2 data'!C51/'Exercise 2 data'!C50) -> 0.1403425645 | D68: =LN('Exercise 2 data'!D51/'Exercise 2 data'!D50) -> 0.09918302404 | E68: =LN('Exercise 2 data'!E51/'Exercise 2 data'!E50) -> 0.4517024649 | F68: =LN('Exercise 2 data'!F51/'Exercise 2 data'!F50) -> 0.1196422805 | G68: =LN('Exercise 2 data'!G51/'Exercise 2 data'!G50) -> 0.05367677862 | H68: =LN('Exercise 2 data'!H51/'Exercise 2 data'!H50) -> 0.01095050576 | I68: =LN('Exercise 2 data'!I51/'Exercise 2 data'!I50) -> 0.09362410203 | J68: =LN('Exercise 2 data'!J51/'Exercise 2 data'!J50) -> 0.1696690195 | K68: =LN('Exercise 2 data'!K51/'Exercise 2 data'!K50) -> 0.1472655716 | L68: =LN('Exercise 2 data'!L51/'Exercise 2 data'!L50) -> 0.1034989563
A69: 2011-11-01 | B69: =LN('Exercise 2 data'!B52/'Exercise 2 data'!B51) -> -0.05739595294 | C69: =LN('Exercise 2 data'!C52/'Exercise 2 data'!C51) -> 0.01132533938 | D69: =LN('Exercise 2 data'!D52/'Exercise 2 data'!D51) -> -0.05738497428 | E69: =LN('Exercise 2 data'!E52/'Exercise 2 data'!E51) -> 0.06881695452 | F69: =LN('Exercise 2 data'!F52/'Exercise 2 data'!F51) -> -0.03378098986 | G69: =LN('Exercise 2 data'!G52/'Exercise 2 data'!G51) -> 0.0357234444 | H69: =LN('Exercise 2 data'!H52/'Exercise 2 data'!H51) -> 0.01436319375 | I69: =LN('Exercise 2 data'!I52/'Exercise 2 data'!I51) -> -0.04932155533 | J69: =LN('Exercise 2 data'!J52/'Exercise 2 data'!J51) -> 0.04923372151 | K69: =LN('Exercise 2 data'!K52/'Exercise 2 data'!K51) -> -0.1296133347 | L69: =LN('Exercise 2 data'!L52/'Exercise 2 data'!L51) -> -0.002297429658
A70: 2011-12-01 | B70: =LN('Exercise 2 data'!B53/'Exercise 2 data'!B52) -> 0.05794413026 | C70: =LN('Exercise 2 data'!C53/'Exercise 2 data'!C52) -> 0.07473222165 | D70: =LN('Exercise 2 data'!D53/'Exercise 2 data'!D52) -> 0.02151906109 | E70: =LN('Exercise 2 data'!E53/'Exercise 2 data'!E52) -> -0.04213134889 | F70: =LN('Exercise 2 data'!F53/'Exercise 2 data'!F52) -> 0.04982295538 | G70: =LN('Exercise 2 data'!G53/'Exercise 2 data'!G52) -> 0.06507288144 | H70: =LN('Exercise 2 data'!H53/'Exercise 2 data'!H52) -> 0.0132114934 | I70: =LN('Exercise 2 data'!I53/'Exercise 2 data'!I52) -> 0.1280172023 | J70: =LN('Exercise 2 data'!J53/'Exercise 2 data'!J52) -> -0.07718279521 | K70: =LN('Exercise 2 data'!K53/'Exercise 2 data'!K52) -> -0.05829435914 | L70: =LN('Exercise 2 data'!L53/'Exercise 2 data'!L52) -> 0.01020955885
A71: 2012-01-03 | B71: =LN('Exercise 2 data'!B54/'Exercise 2 data'!B53) -> 0.1196412788 | C71: =LN('Exercise 2 data'!C54/'Exercise 2 data'!C53) -> -0.1074269523 | D71: =LN('Exercise 2 data'!D54/'Exercise 2 data'!D53) -> 0.0639932069 | E71: =LN('Exercise 2 data'!E54/'Exercise 2 data'!E53) -> 0.253880177 | F71: =LN('Exercise 2 data'!F54/'Exercise 2 data'!F53) -> 0.1140964397 | G71: =LN('Exercise 2 data'!G54/'Exercise 2 data'!G53) -> 0.01481102226 | H71: =LN('Exercise 2 data'!H54/'Exercise 2 data'!H53) -> 0.005047329327 | I71: =LN('Exercise 2 data'!I54/'Exercise 2 data'!I53) -> 0.04352198578 | J71: =LN('Exercise 2 data'!J54/'Exercise 2 data'!J53) -> 0.08271072526 | K71: =LN('Exercise 2 data'!K54/'Exercise 2 data'!K53) -> 0.2091978395 | L71: =LN('Exercise 2 data'!L54/'Exercise 2 data'!L53) -> 0.04360620607
A72: 2012-02-01 | B72: =LN('Exercise 2 data'!B55/'Exercise 2 data'!B54) -> 0.1725456276 | C72: =LN('Exercise 2 data'!C55/'Exercise 2 data'!C54) -> 0.06367516567 | D72: =LN('Exercise 2 data'!D55/'Exercise 2 data'!D54) -> 0.08668774491 | E72: =LN('Exercise 2 data'!E55/'Exercise 2 data'!E54) -> 0.2264266463 | F72: =LN('Exercise 2 data'!F55/'Exercise 2 data'!F54) -> 0.1013617407 | G72: =LN('Exercise 2 data'!G55/'Exercise 2 data'!G54) -> -0.002453320026 | H72: =LN('Exercise 2 data'!H55/'Exercise 2 data'!H54) -> -0.003941047112 | I72: =LN('Exercise 2 data'!I55/'Exercise 2 data'!I54) -> 0.02727937842 | J72: =LN('Exercise 2 data'!J55/'Exercise 2 data'!J54) -> -0.1004316884 | K72: =LN('Exercise 2 data'!K55/'Exercise 2 data'!K54) -> 0.03538686061 | L72: =LN('Exercise 2 data'!L55/'Exercise 2 data'!L54) -> 0.04218580549
A73: 2012-03-01 | B73: =LN('Exercise 2 data'!B56/'Exercise 2 data'!B55) -> 0.1000887725 | C73: =LN('Exercise 2 data'!C56/'Exercise 2 data'!C55) -> 0.03651089542 | D73: =LN('Exercise 2 data'!D56/'Exercise 2 data'!D55) -> 0.0300623841 | E73: =LN('Exercise 2 data'!E56/'Exercise 2 data'!E55) -> 0.02627086977 | F73: =LN('Exercise 2 data'!F56/'Exercise 2 data'!F55) -> 0.01991140276 | G73: =LN('Exercise 2 data'!G56/'Exercise 2 data'!G55) -> 0.01704817369 | H73: =LN('Exercise 2 data'!H56/'Exercise 2 data'!H55) -> 0.01349251721 | I73: =LN('Exercise 2 data'!I56/'Exercise 2 data'!I55) -> 0.05191204802 | J73: =LN('Exercise 2 data'!J56/'Exercise 2 data'!J55) -> -0.05512878051 | K73: =LN('Exercise 2 data'!K56/'Exercise 2 data'!K55) -> 0.07713380704 | L73: =LN('Exercise 2 data'!L56/'Exercise 2 data'!L55) -> 0.03234122546
A74: 2012-04-02 | B74: =LN('Exercise 2 data'!B57/'Exercise 2 data'!B56) -> -0.02630766067 | C74: =LN('Exercise 2 data'!C57/'Exercise 2 data'!C56) -> -0.05842330842 | D74: =LN('Exercise 2 data'!D57/'Exercise 2 data'!D56) -> 0.0001233882413 | E74: =LN('Exercise 2 data'!E57/'Exercise 2 data'!E56) -> 0.1405692621 | F74: =LN('Exercise 2 data'!F57/'Exercise 2 data'!F56) -> 0.01685243793 | G74: =LN('Exercise 2 data'!G57/'Exercise 2 data'!G56) -> 0.02150049643 | H74: =LN('Exercise 2 data'!H57/'Exercise 2 data'!H56) -> -0.01317666123 | I74: =LN('Exercise 2 data'!I57/'Exercise 2 data'!I56) -> -0.02483314367 | J74: =LN('Exercise 2 data'!J57/'Exercise 2 data'!J56) -> 0.03832854927 | K74: =LN('Exercise 2 data'!K57/'Exercise 2 data'!K56) -> -0.07704579049 | L74: =LN('Exercise 2 data'!L57/'Exercise 2 data'!L56) -> -0.006479082811
A75: 2012-05-01 | B75: =LN('Exercise 2 data'!B58/'Exercise 2 data'!B57) -> -0.01076885385 | C75: =LN('Exercise 2 data'!C58/'Exercise 2 data'!C57) -> -0.04047072945 | D75: =LN('Exercise 2 data'!D58/'Exercise 2 data'!D57) -> 0.06449996395 | E75: =LN('Exercise 2 data'!E58/'Exercise 2 data'!E57) -> -0.2723330891 | F75: =LN('Exercise 2 data'!F58/'Exercise 2 data'!F57) -> -0.04862306583 | G75: =LN('Exercise 2 data'!G58/'Exercise 2 data'!G57) -> -0.0431992051 | H75: =LN('Exercise 2 data'!H58/'Exercise 2 data'!H57) -> -0.03209003089 | I75: =LN('Exercise 2 data'!I58/'Exercise 2 data'!I57) -> -0.02492836589 | J75: =LN('Exercise 2 data'!J58/'Exercise 2 data'!J57) -> -0.08806377128 | K75: =LN('Exercise 2 data'!K58/'Exercise 2 data'!K57) -> -0.1802466119 | L75: =LN('Exercise 2 data'!L58/'Exercise 2 data'!L57) -> -0.06203037879
A76: 2012-06-01 | B76: =LN('Exercise 2 data'!B59/'Exercise 2 data'!B58) -> 0.01080340512 | C76: =LN('Exercise 2 data'!C59/'Exercise 2 data'!C58) -> -0.001360978047 | D76: =LN('Exercise 2 data'!D59/'Exercise 2 data'!D58) -> 0.0744301544 | E76: =LN('Exercise 2 data'!E59/'Exercise 2 data'!E58) -> 0.05413692954 | F76: =LN('Exercise 2 data'!F59/'Exercise 2 data'!F58) -> 0.1057814797 | G76: =LN('Exercise 2 data'!G59/'Exercise 2 data'!G58) -> 0.1161059759 | H76: =LN('Exercise 2 data'!H59/'Exercise 2 data'!H58) -> 0.07882534568 | I76: =LN('Exercise 2 data'!I59/'Exercise 2 data'!I58) -> 0.0961886143 | J76: =LN('Exercise 2 data'!J59/'Exercise 2 data'!J58) -> -0.1141232247 | K76: =LN('Exercise 2 data'!K59/'Exercise 2 data'!K58) -> 0.001684920365 | L76: =LN('Exercise 2 data'!L59/'Exercise 2 data'!L58) -> 0.04033858464
A77: 2012-07-02 | B77: =LN('Exercise 2 data'!B60/'Exercise 2 data'!B59) -> 0.0447957079 | C77: =LN('Exercise 2 data'!C60/'Exercise 2 data'!C59) -> 0.08727424174 | D77: =LN('Exercise 2 data'!D60/'Exercise 2 data'!D59) -> -0.03774858777 | E77: =LN('Exercise 2 data'!E60/'Exercise 2 data'!E59) -> 0.193688466 | F77: =LN('Exercise 2 data'!F60/'Exercise 2 data'!F59) -> 0.01814250575 | G77: =LN('Exercise 2 data'!G60/'Exercise 2 data'!G59) -> 0.05648001538 | H77: =LN('Exercise 2 data'!H60/'Exercise 2 data'!H59) -> 0.02441323985 | I77: =LN('Exercise 2 data'!I60/'Exercise 2 data'!I59) -> -0.004399909323 | J77: =LN('Exercise 2 data'!J60/'Exercise 2 data'!J59) -> -0.09769034957 | K77: =LN('Exercise 2 data'!K60/'Exercise 2 data'!K59) -> 0.05117228538 | L77: =LN('Exercise 2 data'!L60/'Exercise 2 data'!L59) -> 0.01359267381
A78: 2012-08-01 | B78: =LN('Exercise 2 data'!B61/'Exercise 2 data'!B60) -> 0.08974146698 | C78: =LN('Exercise 2 data'!C61/'Exercise 2 data'!C60) -> 0.07912718884 | D78: =LN('Exercise 2 data'!D61/'Exercise 2 data'!D60) -> 0.05266946567 | E78: =LN('Exercise 2 data'!E61/'Exercise 2 data'!E60) -> 0.07403412873 | F78: =LN('Exercise 2 data'!F61/'Exercise 2 data'!F60) -> 0.02962500967 | G78: =LN('Exercise 2 data'!G61/'Exercise 2 data'!G60) -> -0.02570835671 | H78: =LN('Exercise 2 data'!H61/'Exercise 2 data'!H60) -> -0.01720600145 | I78: =LN('Exercise 2 data'!I61/'Exercise 2 data'!I60) -> -0.001961746583 | J78: =LN('Exercise 2 data'!J61/'Exercise 2 data'!J60) -> -0.07767518341 | K78: =LN('Exercise 2 data'!K61/'Exercise 2 data'!K60) -> 0.05105833727 | L78: =LN('Exercise 2 data'!L61/'Exercise 2 data'!L60) -> 0.02209732699
A79: 2012-09-04 | B79: =LN('Exercise 2 data'!B62/'Exercise 2 data'!B61) -> 0.002789738594 | C79: =LN('Exercise 2 data'!C62/'Exercise 2 data'!C61) -> 0.09650506171 | D79: =LN('Exercise 2 data'!D62/'Exercise 2 data'!D61) -> 0.008112566223 | E79: =LN('Exercise 2 data'!E62/'Exercise 2 data'!E61) -> -0.03351541934 | F79: =LN('Exercise 2 data'!F62/'Exercise 2 data'!F61) -> 0.06382354999 | G79: =LN('Exercise 2 data'!G62/'Exercise 2 data'!G61) -> 0.05593449597 | H79: =LN('Exercise 2 data'!H62/'Exercise 2 data'!H61) -> 0.02175446502 | I79: =LN('Exercise 2 data'!I62/'Exercise 2 data'!I61) -> 0.09945207897 | J79: =LN('Exercise 2 data'!J62/'Exercise 2 data'!J61) -> 0.01851351773 | K79: =LN('Exercise 2 data'!K62/'Exercise 2 data'!K61) -> 0.07262768751 | L79: =LN('Exercise 2 data'!L62/'Exercise 2 data'!L61) -> 0.02546645706
A80: 2012-10-01 | B80: =LN('Exercise 2 data'!B63/'Exercise 2 data'!B62) -> -0.1138510558 | C80: =LN('Exercise 2 data'!C63/'Exercise 2 data'!C62) -> -0.1035214009 | D80: =LN('Exercise 2 data'!D63/'Exercise 2 data'!D62) -> -0.02712210917 | E80: =LN('Exercise 2 data'!E63/'Exercise 2 data'!E62) -> -0.1245897358 | F80: =LN('Exercise 2 data'!F63/'Exercise 2 data'!F62) -> 0.05332398101 | G80: =LN('Exercise 2 data'!G63/'Exercise 2 data'!G62) -> 0.01179495147 | H80: =LN('Exercise 2 data'!H63/'Exercise 2 data'!H62) -> 0.02729214229 | I80: =LN('Exercise 2 data'!I63/'Exercise 2 data'!I62) -> -0.07520258812 | J80: =LN('Exercise 2 data'!J63/'Exercise 2 data'!J62) -> -0.2084589996 | K80: =LN('Exercise 2 data'!K63/'Exercise 2 data'!K62) -> 0.07379873707 | L80: =LN('Exercise 2 data'!L63/'Exercise 2 data'!L62) -> -0.01877026118
A81: 2012-11-01 | B81: =LN('Exercise 2 data'!B64/'Exercise 2 data'!B63) -> -0.01244614458 | C81: =LN('Exercise 2 data'!C64/'Exercise 2 data'!C63) -> 0.02621517093 | D81: =LN('Exercise 2 data'!D64/'Exercise 2 data'!D63) -> -0.01520941866 | E81: =LN('Exercise 2 data'!E64/'Exercise 2 data'!E63) -> -0.07428097755 | F81: =LN('Exercise 2 data'!F64/'Exercise 2 data'!F63) -> -0.008602203583 | G81: =LN('Exercise 2 data'!G64/'Exercise 2 data'!G63) -> -0.02963845143 | H81: =LN('Exercise 2 data'!H64/'Exercise 2 data'!H63) -> -0.006717669799 | I81: =LN('Exercise 2 data'!I64/'Exercise 2 data'!I63) -> 0.003348484353 | J81: =LN('Exercise 2 data'!J64/'Exercise 2 data'!J63) -> -0.06395560069 | K81: =LN('Exercise 2 data'!K64/'Exercise 2 data'!K63) -> -0.03405152486 | L81: =LN('Exercise 2 data'!L64/'Exercise 2 data'!L63) -> 0.00558425624
A82: 2012-12-03 | B82: =LN('Exercise 2 data'!B65/'Exercise 2 data'!B64) -> -0.09512737803 | C82: =LN('Exercise 2 data'!C65/'Exercise 2 data'!C64) -> 0.01281895555 | D82: =LN('Exercise 2 data'!D65/'Exercise 2 data'!D64) -> -0.002082078447 | E82: =LN('Exercise 2 data'!E65/'Exercise 2 data'!E64) -> 0.2054670433 | F82: =LN('Exercise 2 data'!F65/'Exercise 2 data'!F64) -> 0.008602203583 | G82: =LN('Exercise 2 data'!G65/'Exercise 2 data'!G64) -> -0.06935105517 | H82: =LN('Exercise 2 data'!H65/'Exercise 2 data'!H64) -> 0.005292152808 | I82: =LN('Exercise 2 data'!I65/'Exercise 2 data'!I64) -> 0.00238492839 | J82: =LN('Exercise 2 data'!J65/'Exercise 2 data'!J64) -> 0.1018578851 | K82: =LN('Exercise 2 data'!K65/'Exercise 2 data'!K64) -> 0.07968346417 | L82: =LN('Exercise 2 data'!L65/'Exercise 2 data'!L64) -> 0.002133659272
A83: 2013-01-02 | B83: =LN('Exercise 2 data'!B66/'Exercise 2 data'!B65) -> -0.009762438628 | C83: =LN('Exercise 2 data'!C66/'Exercise 2 data'!C65) -> 0.04233516954 | D83: =LN('Exercise 2 data'!D66/'Exercise 2 data'!D65) -> 0.0006579669061 | E83: =LN('Exercise 2 data'!E66/'Exercise 2 data'!E65) -> 0.03329869632 | F83: =LN('Exercise 2 data'!F66/'Exercise 2 data'!F65) -> 0.01882595703 | G83: =LN('Exercise 2 data'!G66/'Exercise 2 data'!G65) -> 0.02484749711 | H83: =LN('Exercise 2 data'!H66/'Exercise 2 data'!H65) -> 0.02047371196 | I83: =LN('Exercise 2 data'!I66/'Exercise 2 data'!I65) -> 0.009955047845 | J83: =LN('Exercise 2 data'!J66/'Exercise 2 data'!J65) -> 0.06058334129 | K83: =LN('Exercise 2 data'!K66/'Exercise 2 data'!K65) -> 0.05305170358 | L83: =LN('Exercise 2 data'!L66/'Exercise 2 data'!L65) -> 0.02807149199

Sheet Exercise 3 answer
A1: SML: SECOND-PASS REGRESSION--REGRESS AVERAGE RETURN ON BETA
A3: Intercept | B3: =INTERCEPT('Exercise 2 template'!B5:K5,'Exercise 2 template'!B16:K16) -> 0.004529850829 | C3: =getformula(B3) -> <-- =INTERCEPT('Exercise 2 template'!B5:K5,'Exercise 2 template'!B16:K16)
A4: Slope | B4: =SLOPE('Exercise 2 template'!B5:K5,'Exercise 2 template'!B16:K16) -> -2.376562577e-05 | C4: =getformula(B4) -> <-- =SLOPE('Exercise 2 template'!B5:K5,'Exercise 2 template'!B16:K16)
A5: R-squared | B5: =RSQ('Exercise 2 template'!B5:K5,'Exercise 2 template'!B16:K16) -> 1.202257851e-06 | C5: =getformula(B5) -> <-- =RSQ('Exercise 2 template'!B5:K5,'Exercise 2 template'!B16:K16)
B7: Terrible results!! The S&P is not efficient wrt to the 10 assets.

Sheet Exercise 4 template
A1: COMPUTING AN EFFICIENT PORTFOLIO OF THE 10 STOCKS
A3: Variance-covariance matrix
B4: AAPL | C4: GOOG | D4: WFM | E4: STX | F4: CMCSA | G4: MRK | H4: JNJ | I4: GE | J4: HPQ | K4: GS | M4: Average returns
A5: AAPL | B5: =MMULT(TRANSPOSE(B32:K91),B32:K91)/(COUNT(A32:A91)-1) -> 0.009493934607 | C5: 0.005900046527 | D5: 0.003857980648 | E5: 0.008015020517 | F5: 0.003183408315 | G5: 0.001482930287 | H5: 0.001239639535 | I5: 0.004557112562 | J5: 0.002654216773 | K5: 0.005849844766 | M5: =TRANSPOSE('Exercise 2 template'!B5:K5) -> 0.02280154827 | N5: =getformula(M5) -> <-- {=TRANSPOSE('Exercise 2 template'!B5:K5)}
A6: GOOG | B6: 0.005900046527 | C6: 0.008945348321 | D6: 0.003418582211 | E6: 0.007552372446 | F6: 0.002410239843 | G6: 0.001994278719 | H6: 0.001082411611 | I6: 0.003094513527 | J6: 0.003255778426 | K6: 0.006251091687 | M6: 0.004471952473
A7: WFM | B7: 0.003857980648 | C7: 0.003418582211 | D7: 0.01830295895 | E7: 0.01234104286 | F7: 0.004381437359 | G7: -0.001077209502 | H7: 0.0007590192998 | I7: 0.005182550838 | J7: 0.003801830171 | K7: 0.007199125274 | M7: 0.01480222597
A8: STX | B8: 0.008015020517 | C8: 0.007552372446 | D8: 0.01234104286 | E8: 0.03376314077 | F8: 0.0078291655 | G8: 0.004703997573 | H8: 0.003165082557 | I8: 0.009519375503 | J8: 0.009765445398 | K8: 0.01287833369 | M8: 0.009402618094
A9: CMCSA | B9: 0.003183408315 | C9: 0.002410239843 | D9: 0.004381437359 | E9: 0.0078291655 | F9: 0.007234803778 | G9: 0.0006545115374 | H9: 0.001823841487 | I9: 0.005979950519 | J9: 0.004078487281 | K9: 0.004504116399 | M9: 0.01387394036
A10: MRK | B10: 0.001482930287 | C10: 0.001994278719 | D10: -0.001077209502 | E10: 0.004703997573 | F10: 0.0006545115374 | G10: 0.004923652375 | H10: 0.001624978262 | I10: 0.002609604521 | J10: 0.001111066535 | K10: 0.0014190428 | M10: 0.002209079664
A11: JNJ | B11: 0.001239639535 | C11: 0.001082411611 | D11: 0.0007590192998 | E11: 0.003165082557 | F11: 0.001823841487 | G11: 0.001624978262 | H11: 0.001882525475 | I11: 0.002890840635 | J11: 0.001407306799 | K11: 0.001600126044 | M11: 0.004885795261
A12: GE | B12: 0.004557112562 | C12: 0.003094513527 | D12: 0.005182550838 | E12: 0.009519375503 | F12: 0.005979950519 | G12: 0.002609604521 | H12: 0.002890840635 | I12: 0.01245223134 | J12: 0.005036454336 | K12: 0.005531694545 | M12: -0.005227323608
A13: HPQ | B13: 0.002654216773 | C13: 0.003255778426 | D13: 0.003801830171 | E13: 0.009765445398 | F13: 0.004078487281 | G13: 0.001111066535 | H13: 0.001407306799 | I13: 0.005036454336 | J13: 0.008576292399 | K13: 0.004467360985 | M13: -0.01657538404
A14: GS | B14: 0.005849844766 | C14: 0.006251091687 | D14: 0.007199125274 | E14: 0.01287833369 | F14: 0.004504116399 | G14: 0.0014190428 | H14: 0.001600126044 | I14: 0.005531694545 | J14: 0.004467360985 | K14: 0.01237130385 | M14: -0.005630512417
B15: =getformula(B14) -> <-- {=MMULT(TRANSPOSE(B32:K91),B32:K91)/(COUNT(A32:A91)-1)}
A17: Risk-free | B17: =2.4%/12 -> 0.002
B19: Efficient portfolio
A20: AAPL | B20: =MMULT(MINVERSE(B5:K14),M5:M14-B17)/SUM(MMULT(MINVERSE(B5:K14),M5:M14-B17)) -> 1.229544239 | C20: =getformula(B20) -> <-- {=MMULT(MINVERSE(B5:K14),M5:M14-B17)/SUM(MMULT(MINVERSE(B5:K14),M5:M14-B17))}
A21: GOOG | B21: -0.1220427967
A22: WFM | B22: 0.3657467038
A23: STX | B23: 0.246195405
A24: CMCSA | B24: 1.373661527
A25: MRK | B25: 0.08117612381
A26: JNJ | B26: 0.97817382
A27: GE | B27: -0.9112523598
A28: HPQ | B28: -1.283215949
A29: GS | B29: -0.957986713
B31: AAPL | C31: GOOG | D31: WFM | E31: STX | F31: CMCSA | G31: MRK | H31: JNJ | I31: GE | J31: HPQ | K31: GS
A32: 2008-02-01 | B32: ='Exercise 2 template'!B24-'Exercise 2 template'!B$5 -> -0.1022730048 | C32: ='Exercise 2 template'!C24-'Exercise 2 template'!C$5 -> -0.1848177908 | D32: ='Exercise 2 template'!D24-'Exercise 2 template'!D$5 -> -0.1298910525 | E32: ='Exercise 2 template'!E24-'Exercise 2 template'!E$5 -> 0.05289751375 | F32: ='Exercise 2 template'!F24-'Exercise 2 template'!F$5 -> 0.05945733273 | G32: ='Exercise 2 template'!G24-'Exercise 2 template'!G$5 -> -0.04217000142 | H32: ='Exercise 2 template'!H24-'Exercise 2 template'!H$5 -> -0.01713969541 | I32: ='Exercise 2 template'!I24-'Exercise 2 template'!I$5 -> -0.05077596958 | J32: ='Exercise 2 template'!J24-'Exercise 2 template'!J$5 -> 0.1051329224 | K32: ='Exercise 2 template'!K24-'Exercise 2 template'!K$5 -> -0.1567917187 | L32: =getformula(K32) -> <-- ='Exercise 2 template'!K24-'Exercise 2 template'!K$5
A33: 2008-03-03 | B33: ='Exercise 2 template'!B25-'Exercise 2 template'!B$5 -> 0.1150780274 | C33: ='Exercise 2 template'!C25-'Exercise 2 template'!C$5 -> -0.07186980046 | D33: ='Exercise 2 template'!D25-'Exercise 2 template'!D$5 -> -0.07900199034 | E33: ='Exercise 2 template'!E25-'Exercise 2 template'!E$5 -> -0.03925558124 | F33: ='Exercise 2 template'!F25-'Exercise 2 template'!F$5 -> -0.02119585423 | G33: ='Exercise 2 template'!G25-'Exercise 2 template'!G$5 -> -0.1479486487 | H33: ='Exercise 2 template'!H25-'Exercise 2 template'!H$5 -> 0.040901092 | I33: ='Exercise 2 template'!I25-'Exercise 2 template'!I$5 -> 0.1158963635 | J33: ='Exercise 2 template'!J25-'Exercise 2 template'!J$5 -> -0.02684016164 | K33: ='Exercise 2 template'!K25-'Exercise 2 template'!K$5 -> -0.01970329134
A34: 2008-04-01 | B34: ='Exercise 2 template'!B26-'Exercise 2 template'!B$5 -> 0.1696160408 | C34: ='Exercise 2 template'!C26-'Exercise 2 template'!C$5 -> 0.2608202041 | D34: ='Exercise 2 template'!D26-'Exercise 2 template'!D$5 -> -0.01863487199 | E34: ='Exercise 2 template'!E26-'Exercise 2 template'!E$5 -> -0.1070965893 | F34: ='Exercise 2 template'!F26-'Exercise 2 template'!F$5 -> 0.04698342131 | G34: ='Exercise 2 template'!G26-'Exercise 2 template'!G$5 -> 8.112254725e-05 | H34: ='Exercise 2 template'!H26-'Exercise 2 template'!H$5 -> 0.0287862199 | I34: ='Exercise 2 template'!I26-'Exercise 2 template'!I$5 -> -0.1186529176 | J34: ='Exercise 2 template'!J26-'Exercise 2 template'!J$5 -> 0.03141107571 | K34: ='Exercise 2 template'!K26-'Exercise 2 template'!K$5 -> 0.1534082688
A35: 2008-05-01 | B35: ='Exercise 2 template'!B27-'Exercise 2 template'!B$5 -> 0.05885487545 | C35: ='Exercise 2 template'!C27-'Exercise 2 template'!C$5 -> 0.0153719867 | D35: ='Exercise 2 template'!D27-'Exercise 2 template'!D$5 -> -0.1332254665 | E35: ='Exercise 2 template'!E27-'Exercise 2 template'!E$5 -> 0.117093344 | F35: ='Exercise 2 template'!F27-'Exercise 2 template'!F$5 -> 0.07658892021 | G35: ='Exercise 2 template'!G27-'Exercise 2 template'!G$5 -> 0.02168614831 | H35: ='Exercise 2 template'!H27-'Exercise 2 template'!H$5 -> -0.003135400975 | I35: ='Exercise 2 template'!I27-'Exercise 2 template'!I$5 -> -0.05726920058 | J35: ='Exercise 2 template'!J27-'Exercise 2 template'!J$5 -> 0.03187423249 | K35: ='Exercise 2 template'!K27-'Exercise 2 template'!K$5 -> -0.0757469341
A36: 2008-06-02 | B36: ='Exercise 2 template'!B28-'Exercise 2 template'!B$5 -> -0.1425842836 | C36: ='Exercise 2 template'!C28-'Exercise 2 template'!C$5 -> -0.1113510137 | D36: ='Exercise 2 template'!D28-'Exercise 2 template'!D$5 -> -0.2169148827 | E36: ='Exercise 2 template'!E28-'Exercise 2 template'!E$5 -> -0.1222687395 | F36: ='Exercise 2 template'!F28-'Exercise 2 template'!F$5 -> -0.1846011644 | G36: ='Exercise 2 template'!G28-'Exercise 2 template'!G$5 -> -0.02545092636 | H36: ='Exercise 2 template'!H28-'Exercise 2 template'!H$5 -> -0.04139594955 | I36: ='Exercise 2 template'!I28-'Exercise 2 template'!I$5 -> -0.1243234622 | J36: ='Exercise 2 template'!J28-'Exercise 2 template'!J$5 -> -0.0441483816 | K36: ='Exercise 2 template'!K28-'Exercise 2 template'!K$5 -> -0.002968199654
A37: 2008-07-01 | B37: ='Exercise 2 template'!B29-'Exercise 2 template'!B$5 -> -0.07486572919 | C37: ='Exercise 2 template'!C29-'Exercise 2 template'!C$5 -> -0.1098915693 | D37: ='Exercise 2 template'!D29-'Exercise 2 template'!D$5 -> -0.07242760223 | E37: ='Exercise 2 template'!E29-'Exercise 2 template'!E$5 -> -0.2467728468 | F37: ='Exercise 2 template'!F29-'Exercise 2 template'!F$5 -> 0.07328151847 | G37: ='Exercise 2 template'!G29-'Exercise 2 template'!G$5 -> -0.1380759397 | H37: ='Exercise 2 template'!H29-'Exercise 2 template'!H$5 -> 0.05734869508 | I37: ='Exercise 2 template'!I29-'Exercise 2 template'!I$5 -> 0.06347933998 | J37: ='Exercise 2 template'!J29-'Exercise 2 template'!J$5 -> 0.02973189483 | K37: ='Exercise 2 template'!K29-'Exercise 2 template'!K$5 -> 0.05849874807
A38: 2008-08-01 | B38: ='Exercise 2 template'!B30-'Exercise 2 template'!B$5 -> 0.04165762983 | C38: ='Exercise 2 template'!C30-'Exercise 2 template'!C$5 -> -0.02679850097 | D38: ='Exercise 2 template'!D30-'Exercise 2 template'!D$5 -> -0.2062262714 | E38: ='Exercise 2 template'!E30-'Exercise 2 template'!E$5 -> -0.0131409402 | F38: ='Exercise 2 template'!F30-'Exercise 2 template'!F$5 -> 0.01271089345 | G38: ='Exercise 2 template'!G30-'Exercise 2 template'!G$5 -> 0.07861032708 | H38: ='Exercise 2 template'!H30-'Exercise 2 template'!H$5 -> 0.02978814142 | I38: ='Exercise 2 template'!I30-'Exercise 2 template'!I$5 -> -0.001552363378 | J38: ='Exercise 2 template'!J30-'Exercise 2 template'!J$5 -> 0.06278209447 | K38: ='Exercise 2 template'!K30-'Exercise 2 template'!K$5 -> -0.1098496436
A39: 2008-09-02 | B39: ='Exercise 2 template'!B31-'Exercise 2 template'!B$5 -> -0.4226291611 | C39: ='Exercise 2 template'!C31-'Exercise 2 template'!C$5 -> -0.1500614575 | D39: ='Exercise 2 template'!D31-'Exercise 2 template'!D$5 -> 0.07493920685 | E39: ='Exercise 2 template'!E31-'Exercise 2 template'!E$5 -> -0.216753923 | F39: ='Exercise 2 template'!F31-'Exercise 2 template'!F$5 -> -0.08972448721 | G39: ='Exercise 2 template'!G31-'Exercise 2 template'!G$5 -> -0.1138001451 | H39: ='Exercise 2 template'!H31-'Exercise 2 template'!H$5 -> -0.02131906407 | I39: ='Exercise 2 template'!I31-'Exercise 2 template'!I$5 -> -0.07854255946 | J39: ='Exercise 2 template'!J31-'Exercise 2 template'!J$5 -> 0.00378690192 | K39: ='Exercise 2 template'!K31-'Exercise 2 template'!K$5 -> -0.2420168111
A40: 2008-10-01 | B40: ='Exercise 2 template'!B32-'Exercise 2 template'!B$5 -> -0.07771730586 | C40: ='Exercise 2 template'!C32-'Exercise 2 template'!C$5 -> -0.1129109838 | D40: ='Exercise 2 template'!D32-'Exercise 2 template'!D$5 -> -0.6399911963 | E40: ='Exercise 2 template'!E32-'Exercise 2 template'!E$5 -> -0.591857898 | F40: ='Exercise 2 template'!F32-'Exercise 2 template'!F$5 -> -0.2298291831 | G40: ='Exercise 2 template'!G32-'Exercise 2 template'!G$5 -> -0.02168768539 | H40: ='Exercise 2 template'!H32-'Exercise 2 template'!H$5 -> -0.1266516472 | I40: ='Exercise 2 template'!I32-'Exercise 2 template'!I$5 -> -0.2624678145 | J40: ='Exercise 2 template'!J32-'Exercise 2 template'!J$5 -> -0.1723410729 | K40: ='Exercise 2 template'!K32-'Exercise 2 template'!K$5 -> -0.3161746529
A41: 2008-11-03 | B41: ='Exercise 2 template'!B33-'Exercise 2 template'!B$5 -> -0.1721034125 | C41: ='Exercise 2 template'!C33-'Exercise 2 template'!C$5 -> -0.2087605431 | D41: ='Exercise 2 template'!D33-'Exercise 2 template'!D$5 -> -0.0274421609 | E41: ='Exercise 2 template'!E33-'Exercise 2 template'!E$5 -> -0.468247615 | F41: ='Exercise 2 template'!F33-'Exercise 2 template'!F$5 -> 0.08131101247 | G41: ='Exercise 2 template'!G33-'Exercise 2 template'!G$5 -> -0.1489782059 | H41: ='Exercise 2 template'!H33-'Exercise 2 template'!H$5 -> -0.04264066457 | I41: ='Exercise 2 template'!I33-'Exercise 2 template'!I$5 -> -0.1228807354 | J41: ='Exercise 2 template'!J33-'Exercise 2 template'!J$5 -> -0.06494907978 | K41: ='Exercise 2 template'!K33-'Exercise 2 template'!K$5 -> -0.1522007574
A42: 2008-12-01 | B42: ='Exercise 2 template'!B34-'Exercise 2 template'!B$5 -> -0.1050240933 | C42: ='Exercise 2 template'!C34-'Exercise 2 template'!C$5 -> 0.04445473979 | D42: ='Exercise 2 template'!D34-'Exercise 2 template'!D$5 -> -0.1286790067 | E42: ='Exercise 2 template'!E34-'Exercise 2 template'!E$5 -> 0.04149895467 | F42: ='Exercise 2 template'!F34-'Exercise 2 template'!F$5 -> -0.04052526396 | G42: ='Exercise 2 template'!G34-'Exercise 2 template'!G$5 -> 0.1410132448 | H42: ='Exercise 2 template'!H34-'Exercise 2 template'!H$5 -> 0.01628621049 | I42: ='Exercise 2 template'!I34-'Exercise 2 template'!I$5 -> -0.03327935881 | J42: ='Exercise 2 template'!J34-'Exercise 2 template'!J$5 -> 0.04683577658 | K42: ='Exercise 2 template'!K34-'Exercise 2 template'!K$5 -> 0.07178095882
A43: 2009-01-02 | B43: ='Exercise 2 template'!B35-'Exercise 2 template'!B$5 -> 0.03171350105 | C43: ='Exercise 2 template'!C35-'Exercise 2 template'!C$5 -> 0.09117798906 | D43: ='Exercise 2 template'!D35-'Exercise 2 template'!D$5 -> 0.06726272709 | E43: ='Exercise 2 template'!E35-'Exercise 2 template'!E$5 -> -0.164794763 | F43: ='Exercise 2 template'!F35-'Exercise 2 template'!F$5 -> -0.1522863115 | G43: ='Exercise 2 template'!G35-'Exercise 2 template'!G$5 -> -0.06493321936 | H43: ='Exercise 2 template'!H35-'Exercise 2 template'!H$5 -> -0.04148837424 | I43: ='Exercise 2 template'!I35-'Exercise 2 template'!I$5 -> -0.2841216143 | J43: ='Exercise 2 template'!J35-'Exercise 2 template'!J$5 -> -0.02672142171 | K43: ='Exercise 2 template'!K35-'Exercise 2 template'!K$5 -> -0.03880426853
A44: 2009-02-02 | B44: ='Exercise 2 template'!B36-'Exercise 2 template'!B$5 -> -0.03202234901 | C44: ='Exercise 2 template'!C36-'Exercise 2 template'!C$5 -> -0.006068357944 | D44: ='Exercise 2 template'!D36-'Exercise 2 template'!D$5 -> 0.1548126796 | E44: ='Exercise 2 template'!E36-'Exercise 2 template'!E$5 -> 0.1234038742 | F44: ='Exercise 2 template'!F36-'Exercise 2 template'!F$5 -> -0.1287991727 | G44: ='Exercise 2 template'!G36-'Exercise 2 template'!G$5 -> -0.1677739608 | H44: ='Exercise 2 template'!H36-'Exercise 2 template'!H$5 -> -0.1395570489 | I44: ='Exercise 2 template'!I36-'Exercise 2 template'!I$5 -> -0.3210020314 | J44: ='Exercise 2 template'!J36-'Exercise 2 template'!J$5 -> -0.1631252588 | K44: ='Exercise 2 template'!K36-'Exercise 2 template'!K$5 -> 0.1316969286
A45: 2009-03-02 | B45: ='Exercise 2 template'!B37-'Exercise 2 template'!B$5 -> 0.140186092 | C45: ='Exercise 2 template'!C37-'Exercise 2 template'!C$5 -> 0.02488661699 | D45: ='Exercise 2 template'!D37-'Exercise 2 template'!D$5 -> 0.3092931601 | E45: ='Exercise 2 template'!E37-'Exercise 2 template'!E$5 -> 0.3259812818 | F45: ='Exercise 2 template'!F37-'Exercise 2 template'!F$5 -> 0.02989317451 | G45: ='Exercise 2 template'!G37-'Exercise 2 template'!G$5 -> 0.1146917327 | H45: ='Exercise 2 template'!H37-'Exercise 2 template'!H$5 -> 0.0458142575 | I45: ='Exercise 2 template'!I37-'Exercise 2 template'!I$5 -> 0.1782588335 | J45: ='Exercise 2 template'!J37-'Exercise 2 template'!J$5 -> 0.118570125 | K45: ='Exercise 2 template'!K37-'Exercise 2 template'!K$5 -> 0.1575981616
A46: 2009-04-01 | B46: ='Exercise 2 template'!B38-'Exercise 2 template'!B$5 -> 0.1570535211 | C46: ='Exercise 2 template'!C38-'Exercise 2 template'!C$5 -> 0.1244916196 | D46: ='Exercise 2 template'!D38-'Exercise 2 template'!D$5 -> 0.1956844992 | E46: ='Exercise 2 template'!E38-'Exercise 2 template'!E$5 -> 0.2962655507 | F46: ='Exercise 2 template'!F38-'Exercise 2 template'!F$5 -> 0.1160824733 | G46: ='Exercise 2 template'!G38-'Exercise 2 template'!G$5 -> -0.1004361308 | H46: ='Exercise 2 template'!H38-'Exercise 2 template'!H$5 -> -0.009449532401 | I46: ='Exercise 2 template'!I38-'Exercise 2 template'!I$5 -> 0.229259369 | J46: ='Exercise 2 template'!J38-'Exercise 2 template'!J$5 -> 0.1320103118 | K46: ='Exercise 2 template'!K38-'Exercise 2 template'!K$5 -> 0.1978766947
A47: 2009-05-01 | B47: ='Exercise 2 template'!B39-'Exercise 2 template'!B$5 -> 0.05350893564 | C47: ='Exercise 2 template'!C39-'Exercise 2 template'!C$5 -> 0.04782722522 | D47: ='Exercise 2 template'!D39-'Exercise 2 template'!D$5 -> -0.109014108 | E47: ='Exercise 2 template'!E39-'Exercise 2 template'!E$5 -> 0.0565553497 | F47: ='Exercise 2 template'!F39-'Exercise 2 template'!F$5 -> -0.1296568884 | G47: ='Exercise 2 template'!G39-'Exercise 2 template'!G$5 -> 0.1268698644 | H47: ='Exercise 2 template'!H39-'Exercise 2 template'!H$5 -> 0.05595662031 | I47: ='Exercise 2 template'!I39-'Exercise 2 template'!I$5 -> 0.06887735068 | J47: ='Exercise 2 template'!J39-'Exercise 2 template'!J$5 -> -0.02973475479 | K47: ='Exercise 2 template'!K39-'Exercise 2 template'!K$5 -> 0.1260403183
A48: 2009-06-01 | B48: ='Exercise 2 template'!B40-'Exercise 2 template'!B$5 -> 0.02485241505 | C48: ='Exercise 2 template'!C40-'Exercise 2 template'!C$5 -> 0.005923696808 | D48: ='Exercise 2 template'!D40-'Exercise 2 template'!D$5 -> -0.008783055949 | E48: ='Exercise 2 template'!E40-'Exercise 2 template'!E$5 -> 0.173127511 | F48: ='Exercise 2 template'!F40-'Exercise 2 template'!F$5 -> 0.03495345459 | G48: ='Exercise 2 template'!G40-'Exercise 2 template'!G$5 -> 0.02522458844 | H48: ='Exercise 2 template'!H40-'Exercise 2 template'!H$5 -> 0.02440035307 | I48: ='Exercise 2 template'!I40-'Exercise 2 template'!I$5 -> -0.1264011189 | J48: ='Exercise 2 template'!J40-'Exercise 2 template'!J$5 -> 0.1367835742 | K48: ='Exercise 2 template'!K40-'Exercise 2 template'!K$5 -> 0.02533980508
A49: 2009-07-01 | B49: ='Exercise 2 template'!B41-'Exercise 2 template'!B$5 -> 0.1144504254 | C49: ='Exercise 2 template'!C41-'Exercise 2 template'!C$5 -> 0.04517740024 | D49: ='Exercise 2 template'!D41-'Exercise 2 template'!D$5 -> 0.2276838701 | E49: ='Exercise 2 template'!E41-'Exercise 2 template'!E$5 -> 0.1314015339 | F49: ='Exercise 2 template'!F41-'Exercise 2 template'!F$5 -> 0.01836328343 | G49: ='Exercise 2 template'!G41-'Exercise 2 template'!G$5 -> 0.06850310119 | H49: ='Exercise 2 template'!H41-'Exercise 2 template'!H$5 -> 0.06469076996 | I49: ='Exercise 2 template'!I41-'Exercise 2 template'!I$5 -> 0.1385210454 | J49: ='Exercise 2 template'!J41-'Exercise 2 template'!J$5 -> 0.1299820451 | K49: ='Exercise 2 template'!K41-'Exercise 2 template'!K$5 -> 0.1077826623
A50: 2009-08-03 | B50: ='Exercise 2 template'!B42-'Exercise 2 template'!B$5 -> 0.006286543689 | C50: ='Exercise 2 template'!C42-'Exercise 2 template'!C$5 -> 0.03669576718 | D50: ='Exercise 2 template'!D42-'Exercise 2 template'!D$5 -> 0.1692301952 | E50: ='Exercise 2 template'!E42-'Exercise 2 template'!E$5 -> 0.1306743345 | F50: ='Exercise 2 template'!F42-'Exercise 2 template'!F$5 -> 0.01665736258 | G50: ='Exercise 2 template'!G42-'Exercise 2 template'!G$5 -> 0.07538389118 | H50: ='Exercise 2 template'!H42-'Exercise 2 template'!H$5 -> -0.004328950699 | I50: ='Exercise 2 template'!I42-'Exercise 2 template'!I$5 -> 0.04198115419 | J50: ='Exercise 2 template'!J42-'Exercise 2 template'!J$5 -> 0.0527080382 | K50: ='Exercise 2 template'!K42-'Exercise 2 template'!K$5 -> 0.02089991923
A51: 2009-09-01 | B51: ='Exercise 2 template'!B43-'Exercise 2 template'!B$5 -> 0.07423557362 | C51: ='Exercise 2 template'!C43-'Exercise 2 template'!C$5 -> 0.06695115902 | D51: ='Exercise 2 template'!D43-'Exercise 2 template'!D$5 -> 0.03249448873 | E51: ='Exercise 2 template'!E43-'Exercise 2 template'!E$5 -> 0.08375779377 | F51: ='Exercise 2 template'!F43-'Exercise 2 template'!F$5 -> 0.08270688765 | G51: ='Exercise 2 template'!G43-'Exercise 2 template'!G$5 -> -0.01521504334 | H51: ='Exercise 2 template'!H43-'Exercise 2 template'!H$5 -> 0.002693499734 | I51: ='Exercise 2 template'!I43-'Exercise 2 template'!I$5 -> 0.1778791838 | J51: ='Exercise 2 template'!J43-'Exercise 2 template'!J$5 -> 0.06877308719 | K51: ='Exercise 2 template'!K43-'Exercise 2 template'!K$5 -> 0.1137538077
A52: 2009-10-01 | B52: ='Exercise 2 template'!B44-'Exercise 2 template'!B$5 -> -0.005961772089 | C52: ='Exercise 2 template'!C44-'Exercise 2 template'!C$5 -> 0.0736126025 | D52: ='Exercise 2 template'!D44-'Exercise 2 template'!D$5 -> 0.03553952889 | E52: ='Exercise 2 template'!E44-'Exercise 2 template'!E$5 -> -0.09550140784 | F52: ='Exercise 2 template'!F44-'Exercise 2 template'!F$5 -> -0.1613800775 | G52: ='Exercise 2 template'!G44-'Exercise 2 template'!G$5 -> -0.02464061406 | H52: ='Exercise 2 template'!H44-'Exercise 2 template'!H$5 -> -0.03574378362 | I52: ='Exercise 2 template'!I44-'Exercise 2 template'!I$5 -> -0.1358512747 | J52: ='Exercise 2 template'!J44-'Exercise 2 template'!J$5 -> 0.02191466258 | K52: ='Exercise 2 template'!K44-'Exercise 2 template'!K$5 -> -0.07440749248
A53: 2009-11-02 | B53: ='Exercise 2 template'!B45-'Exercise 2 template'!B$5 -> 0.03597013574 | C53: ='Exercise 2 template'!C45-'Exercise 2 template'!C$5 -> 0.07935721727 | D53: ='Exercise 2 template'!D45-'Exercise 2 template'!D$5 -> -0.2378650312 | E53: ='Exercise 2 template'!E45-'Exercise 2 template'!E$5 -> 0.07166200064 | F53: ='Exercise 2 template'!F45-'Exercise 2 template'!F$5 -> -0.002896881726 | G53: ='Exercise 2 template'!G45-'Exercise 2 template'!G$5 -> 0.1553888736 | H53: ='Exercise 2 template'!H45-'Exercise 2 template'!H$5 -> 0.06533455934 | I53: ='Exercise 2 template'!I45-'Exercise 2 template'!I$5 -> 0.1217145187 | J53: ='Exercise 2 template'!J45-'Exercise 2 template'!J$5 -> 0.0495298118 | K53: ='Exercise 2 template'!K45-'Exercise 2 template'!K$5 -> 0.004774243252
A54: 2009-12-01 | B54: ='Exercise 2 template'!B46-'Exercise 2 template'!B$5 -> 0.02993405649 | C54: ='Exercise 2 template'!C46-'Exercise 2 template'!C$5 -> 0.05702808063 | D54: ='Exercise 2 template'!D46-'Exercise 2 template'!D$5 -> 0.05308655083 | E54: ='Exercise 2 template'!E46-'Exercise 2 template'!E$5 -> 0.1750795445 | F54: ='Exercise 2 template'!F46-'Exercise 2 template'!F$5 -> 0.1264574241 | G54: ='Exercise 2 template'!G46-'Exercise 2 template'!G$5 -> 0.01698295191 | H54: ='Exercise 2 template'!H46-'Exercise 2 template'!H$5 -> 0.01977226964 | I54: ='Exercise 2 template'!I46-'Exercise 2 template'!I$5 -> -0.04584760633 | J54: ='Exercise 2 template'!J46-'Exercise 2 template'!J$5 -> 0.06702031524 | K54: ='Exercise 2 template'!K46-'Exercise 2 template'!K$5 -> 0.0007849176321
A55: 2010-01-04 | B55: ='Exercise 2 template'!B47-'Exercise 2 template'!B$5 -> -0.1155919257 | C55: ='Exercise 2 template'!C47-'Exercise 2 template'!C$5 -> -0.1613953793 | D55: ='Exercise 2 template'!D47-'Exercise 2 template'!D$5 -> -0.02351605265 | E55: ='Exercise 2 template'!E47-'Exercise 2 template'!E$5 -> -0.09445385071 | F55: ='Exercise 2 template'!F47-'Exercise 2 template'!F$5 -> -0.0718139968 | G55: ='Exercise 2 template'!G47-'Exercise 2 template'!G$5 -> 0.04168702569 | H55: ='Exercise 2 template'!H47-'Exercise 2 template'!H$5 -> -0.0291898152 | I55: ='Exercise 2 template'!I47-'Exercise 2 template'!I$5 -> 0.06662226258 | J55: ='Exercise 2 template'!J47-'Exercise 2 template'!J$5 -> -0.07350253936 | K55: ='Exercise 2 template'!K47-'Exercise 2 template'!K$5 -> -0.1212474957
A56: 2010-02-01 | B56: ='Exercise 2 template'!B48-'Exercise 2 template'!B$5 -> 0.040547791 | C56: ='Exercise 2 template'!C48-'Exercise 2 template'!C$5 -> -0.01041477519 | D56: ='Exercise 2 template'!D48-'Exercise 2 template'!D$5 -> 0.2506599163 | E56: ='Exercise 2 template'!E48-'Exercise 2 template'!E$5 -> 0.1656032976 | F56: ='Exercise 2 template'!F48-'Exercise 2 template'!F$5 -> 0.02426348879 | G56: ='Exercise 2 template'!G48-'Exercise 2 template'!G$5 -> -0.03679990696 | H56: ='Exercise 2 template'!H48-'Exercise 2 template'!H$5 -> 0.004801642895 | I56: ='Exercise 2 template'!I48-'Exercise 2 template'!I$5 -> 0.01000712103 | J56: ='Exercise 2 template'!J48-'Exercise 2 template'!J$5 -> 0.09246867245 | K56: ='Exercise 2 template'!K48-'Exercise 2 template'!K$5 -> 0.05785175809
A57: 2010-03-01 | B57: ='Exercise 2 template'!B49-'Exercise 2 template'!B$5 -> 0.1156175448 | C57: ='Exercise 2 template'!C49-'Exercise 2 template'!C$5 -> 0.0692779992 | D57: ='Exercise 2 template'!D49-'Exercise 2 template'!D$5 -> 0.003700759261 | E57: ='Exercise 2 template'!E49-'Exercise 2 template'!E$5 -> -0.09576663306 | F57: ='Exercise 2 template'!F49-'Exercise 2 template'!F$5 -> 0.1216715516 | G57: ='Exercise 2 template'!G49-'Exercise 2 template'!G$5 -> 0.02098390378 | H57: ='Exercise 2 template'!H49-'Exercise 2 template'!H$5 -> 0.02957067107 | I57: ='Exercise 2 template'!I49-'Exercise 2 template'!I$5 -> 0.1305507358 | J57: ='Exercise 2 template'!J49-'Exercise 2 template'!J$5 -> 0.06368810936 | K57: ='Exercise 2 template'!K49-'Exercise 2 template'!K$5 -> 0.09305587552
A58: 2010-04-01 | B58: ='Exercise 2 template'!B50-'Exercise 2 template'!B$5 -> 0.08247739449 | C58: ='Exercise 2 template'!C50-'Exercise 2 template'!C$5 -> -0.08031216619 | D58: ='Exercise 2 template'!D50-'Exercise 2 template'!D$5 -> 0.06155390262 | E58: ='Exercise 2 template'!E50-'Exercise 2 template'!E$5 -> -0.00463502861 | F58: ='Exercise 2 template'!F50-'Exercise 2 template'!F$5 -> 0.03986706018 | G58: ='Exercise 2 template'!G50-'Exercise 2 template'!G$5 -> -0.06604397711 | H58: ='Exercise 2 template'!H50-'Exercise 2 template'!H$5 -> -0.01886965206 | I58: ='Exercise 2 template'!I50-'Exercise 2 template'!I$5 -> 0.04065015345 | J58: ='Exercise 2 template'!J50-'Exercise 2 template'!J$5 -> -0.005996232366 | K58: ='Exercise 2 template'!K50-'Exercise 2 template'!K$5 -> -0.1557499465
A59: 2010-05-03 | B59: ='Exercise 2 template'!B51-'Exercise 2 template'!B$5 -> -0.03904623264 | C59: ='Exercise 2 template'!C51-'Exercise 2 template'!C$5 -> -0.08375564322 | D59: ='Exercise 2 template'!D51-'Exercise 2 template'!D$5 -> 0.02065508587 | E59: ='Exercise 2 template'!E51-'Exercise 2 template'!E$5 -> -0.1872159219 | F59: ='Exercise 2 template'!F51-'Exercise 2 template'!F$5 -> -0.1025855436 | G59: ='Exercise 2 template'!G51-'Exercise 2 template'!G$5 -> -0.04155841845 | H59: ='Exercise 2 template'!H51-'Exercise 2 template'!H$5 -> -0.09372545488 | I59: ='Exercise 2 template'!I51-'Exercise 2 template'!I$5 -> -0.1372936418 | J59: ='Exercise 2 template'!J51-'Exercise 2 template'!J$5 -> -0.1050787711 | K59: ='Exercise 2 template'!K51-'Exercise 2 template'!K$5 -> 0.001627647887
A60: 2010-06-01 | B60: ='Exercise 2 template'!B52-'Exercise 2 template'!B$5 -> -0.04383657396 | C60: ='Exercise 2 template'!C52-'Exercise 2 template'!C$5 -> -0.09195705325 | D60: ='Exercise 2 template'!D52-'Exercise 2 template'!D$5 -> -0.1303464786 | E60: ='Exercise 2 template'!E52-'Exercise 2 template'!E$5 -> -0.1725902203 | F60: ='Exercise 2 template'!F52-'Exercise 2 template'!F$5 -> -0.05435565828 | G60: ='Exercise 2 template'!G52-'Exercise 2 template'!G$5 -> 0.04610318724 | H60: ='Exercise 2 template'!H52-'Exercise 2 template'!H$5 -> 0.007981515137 | I60: ='Exercise 2 template'!I52-'Exercise 2 template'!I$5 -> -0.1147319915 | J60: ='Exercise 2 template'!J52-'Exercise 2 template'!J$5 -> -0.04312279049 | K60: ='Exercise 2 template'!K52-'Exercise 2 template'!K$5 -> -0.08871322436
A61: 2010-07-01 | B61: ='Exercise 2 template'!B53-'Exercise 2 template'!B$5 -> -0.0003144315031 | C61: ='Exercise 2 template'!C53-'Exercise 2 template'!C$5 -> 0.08140569597 | D61: ='Exercise 2 template'!D53-'Exercise 2 template'!D$5 -> 0.03784150752 | E61: ='Exercise 2 template'!E53-'Exercise 2 template'!E$5 -> -0.04775414388 | F61: ='Exercise 2 template'!F53-'Exercise 2 template'!F$5 -> 0.1056626534 | G61: ='Exercise 2 template'!G53-'Exercise 2 template'!G$5 -> -0.01697660325 | H61: ='Exercise 2 template'!H53-'Exercise 2 template'!H$5 -> -0.0213255453 | I61: ='Exercise 2 template'!I53-'Exercise 2 template'!I$5 -> 0.117127495 | J61: ='Exercise 2 template'!J53-'Exercise 2 template'!J$5 -> 0.07855250213 | K61: ='Exercise 2 template'!K53-'Exercise 2 template'!K$5 -> 0.1444509238
A62: 2010-08-02 | B62: ='Exercise 2 template'!B54-'Exercise 2 template'!B$5 -> -0.07939493236 | C62: ='Exercise 2 template'!C54-'Exercise 2 template'!C$5 -> -0.079019491 | D62: ='Exercise 2 template'!D54-'Exercise 2 template'!D$5 -> -0.1022600648 | E62: ='Exercise 2 template'!E54-'Exercise 2 template'!E$5 -> -0.2226044407 | F62: ='Exercise 2 template'!F54-'Exercise 2 template'!F$5 -> -0.1437923068 | G62: ='Exercise 2 template'!G54-'Exercise 2 template'!G$5 -> 0.0179612856 | H62: ='Exercise 2 template'!H54-'Exercise 2 template'!H$5 -> -0.01415826211 | I62: ='Exercise 2 template'!I54-'Exercise 2 template'!I$5 -> -0.1021581674 | J62: ='Exercise 2 template'!J54-'Exercise 2 template'!J$5 -> -0.1635178356 | K62: ='Exercise 2 template'!K54-'Exercise 2 template'!K$5 -> -0.08847466649
A63: 2010-09-01 | B63: ='Exercise 2 template'!B55-'Exercise 2 template'!B$5 -> 0.1318114606 | C63: ='Exercise 2 template'!C55-'Exercise 2 template'!C$5 -> 0.1511379148 | D63: ='Exercise 2 template'!D55-'Exercise 2 template'!D$5 -> 0.04975490172 | E63: ='Exercise 2 template'!E55-'Exercise 2 template'!E$5 -> 0.1401291159 | F63: ='Exercise 2 template'!F55-'Exercise 2 template'!F$5 -> 0.04164613603 | G63: ='Exercise 2 template'!G55-'Exercise 2 template'!G$5 -> 0.05417424958 | H63: ='Exercise 2 template'!H55-'Exercise 2 template'!H$5 -> 0.07825243806 | I63: ='Exercise 2 template'!I55-'Exercise 2 template'!I$5 -> 0.1280028809 | J63: ='Exercise 2 template'!J55-'Exercise 2 template'!J$5 -> 0.10843553 | K63: ='Exercise 2 template'!K55-'Exercise 2 template'!K$5 -> 0.05997499545
A64: 2010-10-01 | B64: ='Exercise 2 template'!B56-'Exercise 2 template'!B$5 -> 0.03615475458 | C64: ='Exercise 2 template'!C56-'Exercise 2 template'!C$5 -> 0.1501323634 | D64: ='Exercise 2 template'!D56-'Exercise 2 template'!D$5 -> 0.05394873329 | E64: ='Exercise 2 template'!E56-'Exercise 2 template'!E$5 -> 0.212999918 | F64: ='Exercise 2 template'!F56-'Exercise 2 template'!F$5 -> 0.123714253 | G64: ='Exercise 2 template'!G56-'Exercise 2 template'!G$5 -> -0.01608562209 | H64: ='Exercise 2 template'!H56-'Exercise 2 template'!H$5 -> 0.02340170658 | I64: ='Exercise 2 template'!I56-'Exercise 2 template'!I$5 -> -0.008815033515 | J64: ='Exercise 2 template'!J56-'Exercise 2 template'!J$5 -> 0.01607799532 | K64: ='Exercise 2 template'!K56-'Exercise 2 template'!K$5 -> 0.1140232099
A65: 2010-11-01 | B65: ='Exercise 2 template'!B57-'Exercise 2 template'!B$5 -> 0.01042826196 | C65: ='Exercise 2 template'!C57-'Exercise 2 template'!C$5 -> -0.1037315864 | D65: ='Exercise 2 template'!D57-'Exercise 2 template'!D$5 -> 0.157569 | E65: ='Exercise 2 template'!E57-'Exercise 2 template'!E$5 -> -0.1025653647 | F65: ='Exercise 2 template'!F57-'Exercise 2 template'!F$5 -> -0.04314432266 | G65: ='Exercise 2 template'!G57-'Exercise 2 template'!G$5 -> -0.05395013048 | H65: ='Exercise 2 template'!H57-'Exercise 2 template'!H$5 -> -0.03125072376 | I65: ='Exercise 2 template'!I57-'Exercise 2 template'!I$5 -> -0.006967949486 | J65: ='Exercise 2 template'!J57-'Exercise 2 template'!J$5 -> 0.01383531507 | K65: ='Exercise 2 template'!K57-'Exercise 2 template'!K$5 -> -0.02364113648
A66: 2010-12-01 | B66: ='Exercise 2 template'!B58-'Exercise 2 template'!B$5 -> 0.01321399791 | C66: ='Exercise 2 template'!C58-'Exercise 2 template'!C$5 -> 0.06211028512 | D66: ='Exercise 2 template'!D58-'Exercise 2 template'!D$5 -> 0.054044436 | E66: ='Exercise 2 template'!E58-'Exercise 2 template'!E$5 -> 0.1050297239 | F66: ='Exercise 2 template'!F58-'Exercise 2 template'!F$5 -> 0.07816213749 | G66: ='Exercise 2 template'!G58-'Exercise 2 template'!G$5 -> 0.05286783475 | H66: ='Exercise 2 template'!H58-'Exercise 2 template'!H$5 -> -8.586498818e-06 | I66: ='Exercise 2 template'!I58-'Exercise 2 template'!I$5 -> 0.1573309198 | J66: ='Exercise 2 template'!J58-'Exercise 2 template'!J$5 -> 0.02254406627 | K66: ='Exercise 2 template'!K58-'Exercise 2 template'!K$5 -> 0.07980434554
A67: 2011-01-03 | B67: ='Exercise 2 template'!B59-'Exercise 2 template'!B$5 -> 0.02784565981 | C67: ='Exercise 2 template'!C59-'Exercise 2 template'!C$5 -> 0.006228709778 | D67: ='Exercise 2 template'!D59-'Exercise 2 template'!D$5 -> 0.009066221042 | E67: ='Exercise 2 template'!E59-'Exercise 2 template'!E$5 -> -0.08005558542 | F67: ='Exercise 2 template'!F59-'Exercise 2 template'!F$5 -> 0.02527364933 | G67: ='Exercise 2 template'!G59-'Exercise 2 template'!G$5 -> -0.08518271065 | H67: ='Exercise 2 template'!H59-'Exercise 2 template'!H$5 -> -0.03917688923 | I67: ='Exercise 2 template'!I59-'Exercise 2 template'!I$5 -> 0.1017077786 | J67: ='Exercise 2 template'!J59-'Exercise 2 template'!J$5 -> 0.09842842636 | K67: ='Exercise 2 template'!K59-'Exercise 2 template'!K$5 -> -0.02170900768
A68: 2011-02-01 | B68: ='Exercise 2 template'!B60-'Exercise 2 template'!B$5 -> 0.01732445886 | C68: ='Exercise 2 template'!C60-'Exercise 2 template'!C$5 -> 0.01701582392 | D68: ='Exercise 2 template'!D60-'Exercise 2 template'!D$5 -> 0.1096434429 | E68: ='Exercise 2 template'!E60-'Exercise 2 template'!E$5 -> -0.1075204741 | F68: ='Exercise 2 template'!F60-'Exercise 2 template'!F$5 -> 0.1105899583 | G68: ='Exercise 2 template'!G60-'Exercise 2 template'!G$5 -> -0.02046684824 | H68: ='Exercise 2 template'!H60-'Exercise 2 template'!H$5 -> 0.03166165652 | I68: ='Exercise 2 template'!I60-'Exercise 2 template'!I$5 -> 0.0499333127 | J68: ='Exercise 2 template'!J60-'Exercise 2 template'!J$5 -> -0.0297161907 | K68: ='Exercise 2 template'!K60-'Exercise 2 template'!K$5 -> 0.008705410513
A69: 2011-03-01 | B69: ='Exercise 2 template'!B61-'Exercise 2 template'!B$5 -> -0.03620140946 | C69: ='Exercise 2 template'!C61-'Exercise 2 template'!C$5 -> -0.04887332653 | D69: ='Exercise 2 template'!D61-'Exercise 2 template'!D$5 -> 0.1032553141 | E69: ='Exercise 2 template'!E61-'Exercise 2 template'!E$5 -> 0.1171240581 | F69: ='Exercise 2 template'!F61-'Exercise 2 template'!F$5 -> -0.0550659253 | G69: ='Exercise 2 template'!G61-'Exercise 2 template'!G$5 -> 0.02293283345 | H69: ='Exercise 2 template'!H61-'Exercise 2 template'!H$5 -> -0.04107366415 | I69: ='Exercise 2 template'!I61-'Exercise 2 template'!I$5 -> -0.03682403159 | J69: ='Exercise 2 template'!J61-'Exercise 2 template'!J$5 -> -0.04434839714 | K69: ='Exercise 2 template'!K61-'Exercise 2 template'!K$5 -> -0.02652250402
A70: 2011-04-01 | B70: ='Exercise 2 template'!B62-'Exercise 2 template'!B$5 -> -0.01815165325 | C70: ='Exercise 2 template'!C62-'Exercise 2 template'!C$5 -> -0.0799547766 | D70: ='Exercise 2 template'!D62-'Exercise 2 template'!D$5 -> -0.0620095782 | E70: ='Exercise 2 template'!E62-'Exercise 2 template'!E$5 -> 0.2020146129 | F70: ='Exercise 2 template'!F62-'Exercise 2 template'!F$5 -> 0.04927063239 | G70: ='Exercise 2 template'!G62-'Exercise 2 template'!G$5 -> 0.0829220597 | H70: ='Exercise 2 template'!H62-'Exercise 2 template'!H$5 -> 0.09867551156 | I70: ='Exercise 2 template'!I62-'Exercise 2 template'!I$5 -> 0.024655606 | J70: ='Exercise 2 template'!J62-'Exercise 2 template'!J$5 -> 0.001972844562 | K70: ='Exercise 2 template'!K62-'Exercise 2 template'!K$5 -> -0.04336672592
A71: 2011-05-02 | B71: ='Exercise 2 template'!B63-'Exercise 2 template'!B$5 -> -0.02939288201 | C71: ='Exercise 2 template'!C63-'Exercise 2 template'!C$5 -> -0.03257876764 | D71: ='Exercise 2 template'!D63-'Exercise 2 template'!D$5 -> -0.04061763242 | E71: ='Exercise 2 template'!E63-'Exercise 2 template'!E$5 -> -0.05709044888 | F71: ='Exercise 2 template'!F63-'Exercise 2 template'!F$5 -> -0.05169019214 | G71: ='Exercise 2 template'!G63-'Exercise 2 template'!G$5 -> 0.01975025969 | H71: ='Exercise 2 template'!H63-'Exercise 2 template'!H$5 -> 0.02732875887 | I71: ='Exercise 2 template'!I63-'Exercise 2 template'!I$5 -> -0.03509644178 | J71: ='Exercise 2 template'!J63-'Exercise 2 template'!J$5 -> -0.06037533457 | K71: ='Exercise 2 template'!K63-'Exercise 2 template'!K$5 -> -0.06233873063
A72: 2011-06-01 | B72: ='Exercise 2 template'!B64-'Exercise 2 template'!B$5 -> -0.05837778087 | C72: ='Exercise 2 template'!C64-'Exercise 2 template'!C$5 -> -0.04821081522 | D72: ='Exercise 2 template'!D64-'Exercise 2 template'!D$5 -> 0.02359401793 | E72: ='Exercise 2 template'!E64-'Exercise 2 template'!E$5 -> -0.04805793841 | F72: ='Exercise 2 template'!F64-'Exercise 2 template'!F$5 -> -0.01019069494 | G72: ='Exercise 2 template'!G64-'Exercise 2 template'!G$5 -> -0.03199978434 | H72: ='Exercise 2 template'!H64-'Exercise 2 template'!H$5 -> -0.01624955391 | I72: ='Exercise 2 template'!I64-'Exercise 2 template'!I$5 -> -0.02723770086 | J72: ='Exercise 2 template'!J64-'Exercise 2 template'!J$5 -> -0.006829039668 | K72: ='Exercise 2 template'!K64-'Exercise 2 template'!K$5 -> -0.05015548171
A73: 2011-07-01 | B73: ='Exercise 2 template'!B65-'Exercise 2 template'!B$5 -> 0.1284252032 | C73: ='Exercise 2 template'!C65-'Exercise 2 template'!C$5 -> 0.1713014931 | D73: ='Exercise 2 template'!D65-'Exercise 2 template'!D$5 -> 0.03523195491 | E73: ='Exercise 2 template'!E65-'Exercise 2 template'!E$5 -> -0.1613290977 | F73: ='Exercise 2 template'!F65-'Exercise 2 template'!F$5 -> -0.06284794495 | G73: ='Exercise 2 template'!G65-'Exercise 2 template'!G$5 -> -0.0354122527 | H73: ='Exercise 2 template'!H65-'Exercise 2 template'!H$5 -> -0.03126236459 | I73: ='Exercise 2 template'!I65-'Exercise 2 template'!I$5 -> -0.04641926525 | J73: ='Exercise 2 template'!J65-'Exercise 2 template'!J$5 -> -0.01767056261 | K73: ='Exercise 2 template'!K65-'Exercise 2 template'!K$5 -> 0.01960607304
A74: 2011-08-01 | B74: ='Exercise 2 template'!B66-'Exercise 2 template'!B$5 -> -0.03737603069 | C74: ='Exercise 2 template'!C66-'Exercise 2 template'!C$5 -> -0.1141874347 | D74: ='Exercise 2 template'!D66-'Exercise 2 template'!D$5 -> -0.02489156262 | E74: ='Exercise 2 template'!E66-'Exercise 2 template'!E$5 -> -0.1775176358 | F74: ='Exercise 2 template'!F66-'Exercise 2 template'!F$5 -> -0.1239646304 | G74: ='Exercise 2 template'!G66-'Exercise 2 template'!G$5 -> -0.03300027588 | H74: ='Exercise 2 template'!H66-'Exercise 2 template'!H$5 -> 0.01942515008 | I74: ='Exercise 2 template'!I66-'Exercise 2 template'!I$5 -> -0.08790619269 | J74: ='Exercise 2 template'!J66-'Exercise 2 template'!J$5 -> -0.2842823706 | K74: ='Exercise 2 template'!K66-'Exercise 2 template'!K$5 -> -0.140877171
A75: 2011-09-01 | B75: ='Exercise 2 template'!B67-'Exercise 2 template'!B$5 -> -0.03196674279 | C75: ='Exercise 2 template'!C67-'Exercise 2 template'!C$5 -> -0.05357272388 | D75: ='Exercise 2 template'!D67-'Exercise 2 template'!D$5 -> -0.02436417671 | E75: ='Exercise 2 template'!E67-'Exercise 2 template'!E$5 -> -0.1284514039 | F75: ='Exercise 2 template'!F67-'Exercise 2 template'!F$5 -> -0.04204481732 | G75: ='Exercise 2 template'!G67-'Exercise 2 template'!G$5 -> -0.0025315043 | H75: ='Exercise 2 template'!H67-'Exercise 2 template'!H$5 -> -0.03754307822 | I75: ='Exercise 2 template'!I67-'Exercise 2 template'!I$5 -> -0.05471072077 | J75: ='Exercise 2 template'!J67-'Exercise 2 template'!J$5 -> -0.1259426464 | K75: ='Exercise 2 template'!K67-'Exercise 2 template'!K$5 -> -0.2007736051
A76: 2011-10-03 | B76: ='Exercise 2 template'!B68-'Exercise 2 template'!B$5 -> 0.03691998711 | C76: ='Exercise 2 template'!C68-'Exercise 2 template'!C$5 -> 0.135870612 | D76: ='Exercise 2 template'!D68-'Exercise 2 template'!D$5 -> 0.08438079807 | E76: ='Exercise 2 template'!E68-'Exercise 2 template'!E$5 -> 0.4422998468 | F76: ='Exercise 2 template'!F68-'Exercise 2 template'!F$5 -> 0.1057683401 | G76: ='Exercise 2 template'!G68-'Exercise 2 template'!G$5 -> 0.05146769896 | H76: ='Exercise 2 template'!H68-'Exercise 2 template'!H$5 -> 0.006064710503 | I76: ='Exercise 2 template'!I68-'Exercise 2 template'!I$5 -> 0.09885142564 | J76: ='Exercise 2 template'!J68-'Exercise 2 template'!J$5 -> 0.1862444036 | K76: ='Exercise 2 template'!K68-'Exercise 2 template'!K$5 -> 0.152896084
A77: 2011-11-01 | B77: ='Exercise 2 template'!B69-'Exercise 2 template'!B$5 -> -0.0801975012 | C77: ='Exercise 2 template'!C69-'Exercise 2 template'!C$5 -> 0.006853386902 | D77: ='Exercise 2 template'!D69-'Exercise 2 template'!D$5 -> -0.07218720024 | E77: ='Exercise 2 template'!E69-'Exercise 2 template'!E$5 -> 0.05941433643 | F77: ='Exercise 2 template'!F69-'Exercise 2 template'!F$5 -> -0.04765493021 | G77: ='Exercise 2 template'!G69-'Exercise 2 template'!G$5 -> 0.03351436474 | H77: ='Exercise 2 template'!H69-'Exercise 2 template'!H$5 -> 0.009477398488 | I77: ='Exercise 2 template'!I69-'Exercise 2 template'!I$5 -> -0.04409423173 | J77: ='Exercise 2 template'!J69-'Exercise 2 template'!J$5 -> 0.06580910555 | K77: ='Exercise 2 template'!K69-'Exercise 2 template'!K$5 -> -0.1239828223
A78: 2011-12-01 | B78: ='Exercise 2 template'!B70-'Exercise 2 template'!B$5 -> 0.03514258199 | C78: ='Exercise 2 template'!C70-'Exercise 2 template'!C$5 -> 0.07026026917 | D78: ='Exercise 2 template'!D70-'Exercise 2 template'!D$5 -> 0.006716835118 | E78: ='Exercise 2 template'!E70-'Exercise 2 template'!E$5 -> -0.05153396698 | F78: ='Exercise 2 template'!F70-'Exercise 2 template'!F$5 -> 0.03594901502 | G78: ='Exercise 2 template'!G70-'Exercise 2 template'!G$5 -> 0.06286380177 | H78: ='Exercise 2 template'!H70-'Exercise 2 template'!H$5 -> 0.008325698134 | I78: ='Exercise 2 template'!I70-'Exercise 2 template'!I$5 -> 0.1332445259 | J78: ='Exercise 2 template'!J70-'Exercise 2 template'!J$5 -> -0.06060741117 | K78: ='Exercise 2 template'!K70-'Exercise 2 template'!K$5 -> -0.05266384672
A79: 2012-01-03 | B79: ='Exercise 2 template'!B71-'Exercise 2 template'!B$5 -> 0.09683973056 | C79: ='Exercise 2 template'!C71-'Exercise 2 template'!C$5 -> -0.1118989048 | D79: ='Exercise 2 template'!D71-'Exercise 2 template'!D$5 -> 0.04919098093 | E79: ='Exercise 2 template'!E71-'Exercise 2 template'!E$5 -> 0.2444775589 | F79: ='Exercise 2 template'!F71-'Exercise 2 template'!F$5 -> 0.1002224993 | G79: ='Exercise 2 template'!G71-'Exercise 2 template'!G$5 -> 0.01260194259 | H79: ='Exercise 2 template'!H71-'Exercise 2 template'!H$5 -> 0.0001615340663 | I79: ='Exercise 2 template'!I71-'Exercise 2 template'!I$5 -> 0.04874930938 | J79: ='Exercise 2 template'!J71-'Exercise 2 template'!J$5 -> 0.09928610931 | K79: ='Exercise 2 template'!K71-'Exercise 2 template'!K$5 -> 0.2148283519
A80: 2012-02-01 | B80: ='Exercise 2 template'!B72-'Exercise 2 template'!B$5 -> 0.1497440794 | C80: ='Exercise 2 template'!C72-'Exercise 2 template'!C$5 -> 0.0592032132 | D80: ='Exercise 2 template'!D72-'Exercise 2 template'!D$5 -> 0.07188551894 | E80: ='Exercise 2 template'!E72-'Exercise 2 template'!E$5 -> 0.2170240282 | F80: ='Exercise 2 template'!F72-'Exercise 2 template'!F$5 -> 0.08748780036 | G80: ='Exercise 2 template'!G72-'Exercise 2 template'!G$5 -> -0.00466239969 | H80: ='Exercise 2 template'!H72-'Exercise 2 template'!H$5 -> -0.008826842373 | I80: ='Exercise 2 template'!I72-'Exercise 2 template'!I$5 -> 0.03250670203 | J80: ='Exercise 2 template'!J72-'Exercise 2 template'!J$5 -> -0.08385630435 | K80: ='Exercise 2 template'!K72-'Exercise 2 template'!K$5 -> 0.04101737302
A81: 2012-03-01 | B81: ='Exercise 2 template'!B73-'Exercise 2 template'!B$5 -> 0.07728722421 | C81: ='Exercise 2 template'!C73-'Exercise 2 template'!C$5 -> 0.03203894295 | D81: ='Exercise 2 template'!D73-'Exercise 2 template'!D$5 -> 0.01526015813 | E81: ='Exercise 2 template'!E73-'Exercise 2 template'!E$5 -> 0.01686825167 | F81: ='Exercise 2 template'!F73-'Exercise 2 template'!F$5 -> 0.006037462399 | G81: ='Exercise 2 template'!G73-'Exercise 2 template'!G$5 -> 0.01483909402 | H81: ='Exercise 2 template'!H73-'Exercise 2 template'!H$5 -> 0.008606721945 | I81: ='Exercise 2 template'!I73-'Exercise 2 template'!I$5 -> 0.05713937163 | J81: ='Exercise 2 template'!J73-'Exercise 2 template'!J$5 -> -0.03855339647 | K81: ='Exercise 2 template'!K73-'Exercise 2 template'!K$5 -> 0.08276431945
A82: 2012-04-02 | B82: ='Exercise 2 template'!B74-'Exercise 2 template'!B$5 -> -0.04910920894 | C82: ='Exercise 2 template'!C74-'Exercise 2 template'!C$5 -> -0.06289526089 | D82: ='Exercise 2 template'!D74-'Exercise 2 template'!D$5 -> -0.01467883773 | E82: ='Exercise 2 template'!E74-'Exercise 2 template'!E$5 -> 0.131166644 | F82: ='Exercise 2 template'!F74-'Exercise 2 template'!F$5 -> 0.002978497576 | G82: ='Exercise 2 template'!G74-'Exercise 2 template'!G$5 -> 0.01929141677 | H82: ='Exercise 2 template'!H74-'Exercise 2 template'!H$5 -> -0.0180624565 | I82: ='Exercise 2 template'!I74-'Exercise 2 template'!I$5 -> -0.01960582006 | J82: ='Exercise 2 template'!J74-'Exercise 2 template'!J$5 -> 0.05490393331 | K82: ='Exercise 2 template'!K74-'Exercise 2 template'!K$5 -> -0.07141527807
A83: 2012-05-01 | B83: ='Exercise 2 template'!B75-'Exercise 2 template'!B$5 -> -0.03357040212 | C83: ='Exercise 2 template'!C75-'Exercise 2 template'!C$5 -> -0.04494268192 | D83: ='Exercise 2 template'!D75-'Exercise 2 template'!D$5 -> 0.04969773798 | E83: ='Exercise 2 template'!E75-'Exercise 2 template'!E$5 -> -0.2817357072 | F83: ='Exercise 2 template'!F75-'Exercise 2 template'!F$5 -> -0.06249700619 | G83: ='Exercise 2 template'!G75-'Exercise 2 template'!G$5 -> -0.04540828477 | H83: ='Exercise 2 template'!H75-'Exercise 2 template'!H$5 -> -0.03697582615 | I83: ='Exercise 2 template'!I75-'Exercise 2 template'!I$5 -> -0.01970104228 | J83: ='Exercise 2 template'!J75-'Exercise 2 template'!J$5 -> -0.07148838724 | K83: ='Exercise 2 template'!K75-'Exercise 2 template'!K$5 -> -0.1746160995
A84: 2012-06-01 | B84: ='Exercise 2 template'!B76-'Exercise 2 template'!B$5 -> -0.01199814315 | C84: ='Exercise 2 template'!C76-'Exercise 2 template'!C$5 -> -0.00583293052 | D84: ='Exercise 2 template'!D76-'Exercise 2 template'!D$5 -> 0.05962792844 | E84: ='Exercise 2 template'!E76-'Exercise 2 template'!E$5 -> 0.04473431145 | F84: ='Exercise 2 template'!F76-'Exercise 2 template'!F$5 -> 0.09190753931 | G84: ='Exercise 2 template'!G76-'Exercise 2 template'!G$5 -> 0.1138968962 | H84: ='Exercise 2 template'!H76-'Exercise 2 template'!H$5 -> 0.07393955042 | I84: ='Exercise 2 template'!I76-'Exercise 2 template'!I$5 -> 0.1014159379 | J84: ='Exercise 2 template'!J76-'Exercise 2 template'!J$5 -> -0.09754784065 | K84: ='Exercise 2 template'!K76-'Exercise 2 template'!K$5 -> 0.007315432782
A85: 2012-07-02 | B85: ='Exercise 2 template'!B77-'Exercise 2 template'!B$5 -> 0.02199415963 | C85: ='Exercise 2 template'!C77-'Exercise 2 template'!C$5 -> 0.08280228927 | D85: ='Exercise 2 template'!D77-'Exercise 2 template'!D$5 -> -0.05255081374 | E85: ='Exercise 2 template'!E77-'Exercise 2 template'!E$5 -> 0.1842858479 | F85: ='Exercise 2 template'!F77-'Exercise 2 template'!F$5 -> 0.004268565394 | G85: ='Exercise 2 template'!G77-'Exercise 2 template'!G$5 -> 0.05427093571 | H85: ='Exercise 2 template'!H77-'Exercise 2 template'!H$5 -> 0.01952744459 | I85: ='Exercise 2 template'!I77-'Exercise 2 template'!I$5 -> 0.000827414285 | J85: ='Exercise 2 template'!J77-'Exercise 2 template'!J$5 -> -0.08111496552 | K85: ='Exercise 2 template'!K77-'Exercise 2 template'!K$5 -> 0.0568027978
A86: 2012-08-01 | B86: ='Exercise 2 template'!B78-'Exercise 2 template'!B$5 -> 0.06693991871 | C86: ='Exercise 2 template'!C78-'Exercise 2 template'!C$5 -> 0.07465523636 | D86: ='Exercise 2 template'!D78-'Exercise 2 template'!D$5 -> 0.0378672397 | E86: ='Exercise 2 template'!E78-'Exercise 2 template'!E$5 -> 0.06463151063 | F86: ='Exercise 2 template'!F78-'Exercise 2 template'!F$5 -> 0.01575106931 | G86: ='Exercise 2 template'!G78-'Exercise 2 template'!G$5 -> -0.02791743637 | H86: ='Exercise 2 template'!H78-'Exercise 2 template'!H$5 -> -0.02209179671 | I86: ='Exercise 2 template'!I78-'Exercise 2 template'!I$5 -> 0.003265577025 | J86: ='Exercise 2 template'!J78-'Exercise 2 template'!J$5 -> -0.06109979937 | K86: ='Exercise 2 template'!K78-'Exercise 2 template'!K$5 -> 0.05668884968
A87: 2012-09-04 | B87: ='Exercise 2 template'!B79-'Exercise 2 template'!B$5 -> -0.02001180967 | C87: ='Exercise 2 template'!C79-'Exercise 2 template'!C$5 -> 0.09203310924 | D87: ='Exercise 2 template'!D79-'Exercise 2 template'!D$5 -> -0.006689659746 | E87: ='Exercise 2 template'!E79-'Exercise 2 template'!E$5 -> -0.04291803743 | F87: ='Exercise 2 template'!F79-'Exercise 2 template'!F$5 -> 0.04994960963 | G87: ='Exercise 2 template'!G79-'Exercise 2 template'!G$5 -> 0.0537254163 | H87: ='Exercise 2 template'!H79-'Exercise 2 template'!H$5 -> 0.01686866976 | I87: ='Exercise 2 template'!I79-'Exercise 2 template'!I$5 -> 0.1046794026 | J87: ='Exercise 2 template'!J79-'Exercise 2 template'!J$5 -> 0.03508890177 | K87: ='Exercise 2 template'!K79-'Exercise 2 template'!K$5 -> 0.07825819992
A88: 2012-10-01 | B88: ='Exercise 2 template'!B80-'Exercise 2 template'!B$5 -> -0.1366526041 | C88: ='Exercise 2 template'!C80-'Exercise 2 template'!C$5 -> -0.1079933533 | D88: ='Exercise 2 template'!D80-'Exercise 2 template'!D$5 -> -0.04192433514 | E88: ='Exercise 2 template'!E80-'Exercise 2 template'!E$5 -> -0.1339923539 | F88: ='Exercise 2 template'!F80-'Exercise 2 template'!F$5 -> 0.03945004065 | G88: ='Exercise 2 template'!G80-'Exercise 2 template'!G$5 -> 0.00958587181 | H88: ='Exercise 2 template'!H80-'Exercise 2 template'!H$5 -> 0.02240634703 | I88: ='Exercise 2 template'!I80-'Exercise 2 template'!I$5 -> -0.06997526451 | J88: ='Exercise 2 template'!J80-'Exercise 2 template'!J$5 -> -0.1918836156 | K88: ='Exercise 2 template'!K80-'Exercise 2 template'!K$5 -> 0.07942924948
A89: 2012-11-01 | B89: ='Exercise 2 template'!B81-'Exercise 2 template'!B$5 -> -0.03524769285 | C89: ='Exercise 2 template'!C81-'Exercise 2 template'!C$5 -> 0.02174321845 | D89: ='Exercise 2 template'!D81-'Exercise 2 template'!D$5 -> -0.03001164463 | E89: ='Exercise 2 template'!E81-'Exercise 2 template'!E$5 -> -0.08368359564 | F89: ='Exercise 2 template'!F81-'Exercise 2 template'!F$5 -> -0.02247614394 | G89: ='Exercise 2 template'!G81-'Exercise 2 template'!G$5 -> -0.0318475311 | H89: ='Exercise 2 template'!H81-'Exercise 2 template'!H$5 -> -0.01160346506 | I89: ='Exercise 2 template'!I81-'Exercise 2 template'!I$5 -> 0.008575807961 | J89: ='Exercise 2 template'!J81-'Exercise 2 template'!J$5 -> -0.04738021665 | K89: ='Exercise 2 template'!K81-'Exercise 2 template'!K$5 -> -0.02842101245
A90: 2012-12-03 | B90: ='Exercise 2 template'!B82-'Exercise 2 template'!B$5 -> -0.1179289263 | C90: ='Exercise 2 template'!C82-'Exercise 2 template'!C$5 -> 0.008347003075 | D90: ='Exercise 2 template'!D82-'Exercise 2 template'!D$5 -> -0.01688430442 | E90: ='Exercise 2 template'!E82-'Exercise 2 template'!E$5 -> 0.1960644252 | F90: ='Exercise 2 template'!F82-'Exercise 2 template'!F$5 -> -0.005271736775 | G90: ='Exercise 2 template'!G82-'Exercise 2 template'!G$5 -> -0.07156013484 | H90: ='Exercise 2 template'!H82-'Exercise 2 template'!H$5 -> 0.0004063575467 | I90: ='Exercise 2 template'!I82-'Exercise 2 template'!I$5 -> 0.007612251998 | J90: ='Exercise 2 template'!J82-'Exercise 2 template'!J$5 -> 0.1184332691 | K90: ='Exercise 2 template'!K82-'Exercise 2 template'!K$5 -> 0.08531397659
A91: 2013-01-02 | B91: ='Exercise 2 template'!B83-'Exercise 2 template'!B$5 -> -0.03256398689 | C91: ='Exercise 2 template'!C83-'Exercise 2 template'!C$5 -> 0.03786321707 | D91: ='Exercise 2 template'!D83-'Exercise 2 template'!D$5 -> -0.01414425906 | E91: ='Exercise 2 template'!E83-'Exercise 2 template'!E$5 -> 0.02389607822 | F91: ='Exercise 2 template'!F83-'Exercise 2 template'!F$5 -> 0.004952016676 | G91: ='Exercise 2 template'!G83-'Exercise 2 template'!G$5 -> 0.02263841745 | H91: ='Exercise 2 template'!H83-'Exercise 2 template'!H$5 -> 0.0155879167 | I91: ='Exercise 2 template'!I83-'Exercise 2 template'!I$5 -> 0.01518237145 | J91: ='Exercise 2 template'!J83-'Exercise 2 template'!J$5 -> 0.07715872534 | K91: ='Exercise 2 template'!K83-'Exercise 2 template'!K$5 -> 0.058682216

Sheet Exercise 5 answer
A1: FIRST AND SECOND PASS REGRESSIONS: STOCKS vs EFFICIENT PORTFOLIO
B2: 1 | C2: 2 | D2: 3 | E2: 4 | F2: 5 | G2: 6 | H2: 7 | I2: 8 | J2: 9 | K2: 10 | L2: 11
A3: Monthly statistics | B3: Apple | C3: Google | D3: Whole Foods | E3: Seagate | F3: Comcast | G3: Merck | H3: Johnson-Johnson | I3: General Electric | J3: Hewlett Packard | K3: Goldman Sachs | L3: Efficient portfolio
A4: Mean
A6: First-pass: Regressing individual assets on the efficient portfolio
A7: Alpha | M7: =getformula(L7) -> <--
A8: Beta | M8: =getformula(L8) -> <--
A9: Rsq | M9: =getformula(L9) -> <--
A10: T-test, intercept | M10: =getformula(K10) -> <--
A11: T-test, slope | M11: =getformula(K11) -> <--
A13: Second-pass: Regressing mean returns on betas
A14: Intercept | C14: =getformula(B14) -> <--
A15: Slope | C15: =getformula(B15) -> <--
A16: R-squared | C16: =getformula(B16) -> <--
A17: RETURN DATA
A18: Date | B18: AAPL | C18: GOOG | D18: WFM | E18: STX | F18: CMCSA | G18: MRK | H18: JNJ | I18: GE | J18: HPQ | K18: GS | L18: Efficient portfolio
A19: 2008-02-01 | M19: =getformula(L19) -> <--
A20: 2008-03-03
A21: 2008-04-01
A22: 2008-05-01
A23: 2008-06-02
A24: 2008-07-01
A25: 2008-08-01
A26: 2008-09-02
A27: 2008-10-01
A28: 2008-11-03
A29: 2008-12-01
A30: 2009-01-02
A31: 2009-02-02
A32: 2009-03-02
A33: 2009-04-01
A34: 2009-05-01
A35: 2009-06-01
A36: 2009-07-01
A37: 2009-08-03
A38: 2009-09-01
A39: 2009-10-01
A40: 2009-11-02
A41: 2009-12-01
A42: 2010-01-04
A43: 2010-02-01
A44: 2010-03-01
A45: 2010-04-01
A46: 2010-05-03
A47: 2010-06-01
A48: 2010-07-01
A49: 2010-08-02
A50: 2010-09-01
A51: 2010-10-01
A52: 2010-11-01
A53: 2010-12-01
A54: 2011-01-03
A55: 2011-02-01
A56: 2011-03-01
A57: 2011-04-01
A58: 2011-05-02
A59: 2011-06-01
A60: 2011-07-01
A61: 2011-08-01
A62: 2011-09-01
A63: 2011-10-03
A64: 2011-11-01
A65: 2011-12-01
A66: 2012-01-03
A67: 2012-02-01
A68: 2012-03-01
A69: 2012-04-02
A70: 2012-05-01
A71: 2012-06-01
A72: 2012-07-02
A73: 2012-08-01
A74: 2012-09-04
A75: 2012-10-01
A76: 2012-11-01
A77: 2012-12-03
A78: 2013-01-02
